Workbook

Sheet Data (2) (hidden)
G1: 2023 | L1: 2024 | Q1: 2025 | V1: =G1 -> 2023 | AA1: =L1 -> 2024 | AF1: =Q1 -> 2025
A2: PPC Generation - Romania (in GWh) | C2: =#REF! ->  | D2: 2023 | E2: 2024 | G2: Q1 | H2: Q2 | I2: Q3 | J2: Q4 | L2: Q1 | M2: Q2 | N2: Q3 | O2: Q4 | Q2: Q1 | R2: Q2 | S2: Q3 | T2: Q4 | V2: Q1 | W2: H1 | X2: 9M | Y2: FY | AA2: Q1 | AB2: H1 | AC2: 9M | AD2: FY | AF2: Q1 | AG2: H1 | AH2: 9M | AI2: FY
A3: PPC Romania | C3: =IF(SUM(C4:C6)>0,SUM(C4:C6),"") -> 1236.530055 | D3: =IF(SUM(D4:D6)>0,SUM(D4:D6),"") -> 1334.62 | E3: =IF(SUM(E4:E6)>0,SUM(E4:E6),"") -> 1384.57 | G3: =IF(SUM(G4:G6)>0,SUM(G4:G6),"") -> 396.48 | H3: =IF(SUM(H4:H6)>0,SUM(H4:H6),"") -> 277.72 | I3: 317.72 | J3: 342.7 | L3: =IF(SUM(L4:L6)>0,SUM(L4:L6),"") -> 370.6 | M3: =IF(SUM(M4:M6)>0,SUM(M4:M6),"") -> 295.43 | N3: 222.59 | O3: 495.95 | Q3: =IF(SUM(Q4:Q6)>0,SUM(Q4:Q6),"") -> 570.643 | R3: =IF(SUM(R4:R6)>0,SUM(R4:R6),"") -> 491.294 | S3: 444.4404503 | V3: =SUM(V4:V6) -> 396.48 | W3: =SUM(W4:W6) -> 674.2 | X3: 991.92 | Y3: 1334.62 | AA3: =IF(SUM(AA4:AA6)>0,SUM(AA4:AA6),"") -> 370.6 | AB3: =IF(SUM(AB4:AB6)>0,SUM(AB4:AB6),"") -> 666.03 | AC3: 888.62 | AD3: 1384.57 | AF3: =IF(Q3="","",SUM($Q3:Q3)) -> 570.643 | AG3: =IF(R3="","",SUM($Q3:R3)) -> 1061.937 | AH3: =IF(S3="","",SUM($Q3:S3)) -> 1506.37745 | AI3: =IF(T3="","",SUM($Q3:T3)) -> 
A4: Wind | C4: 1193.988084 | D4: =SUM(G4:J4) -> 1244.59 | E4: =IF(O4<>"",SUM(L4:O4),"") -> 1261.83 | G4: 389.14 | H4: 265.25 | I4: 267.27 | J4: 322.93 | L4: 348.76 | M4: 252.2 | N4: 184.25 | O4: 476.62 | Q4: 540.722 | R4: 431.518 | S4: 399.7104553 | V4: =IF(G4>0,SUM($G4:G4),"") -> 389.14 | W4: =IF(H4>0,SUM($G4:H4),"") -> 654.39 | X4: =IF(I4>0,SUM($G4:I4),"") -> 921.66 | Y4: =IF(J4>0,SUM($G4:J4),"") -> 1244.59 | AA4: =IF(L4="","",SUM($L4:L4)) -> 348.76 | AB4: =IF(M4="","",SUM($L4:M4)) -> 600.96 | AC4: =IF(N4="","",SUM($L4:N4)) -> 785.21 | AD4: =IF(O4="","",SUM($L4:O4)) -> 1261.83 | AF4: =IF(Q4="","",SUM($Q4:Q4)) -> 540.722 | AG4: =IF(R4="","",SUM($Q4:R4)) -> 972.24 | AH4: =IF(S4="","",SUM($Q4:S4)) -> 1371.950455 | AI4: =IF(T4="","",SUM($Q4:T4)) -> 
A5: Solar | C5: 42.541971 | D5: 90.03 | E5: 119.04 | G5: 7.34 | H5: 12.47 | I5: 50.45 | J5: 19.77 | L5: 21.84 | M5: 43.23 | N5: 38.34 | O5: 15.63 | Q5: 24.233 | R5: 48.352 | S5: 39.148053 | V5: =IF(G5>0,SUM($G5:G5),"") -> 7.34 | W5: =IF(H5>0,SUM($G5:H5),"") -> 19.81 | X5: =IF(I5>0,SUM($G5:I5),"") -> 70.26 | Y5: =IF(J5>0,SUM($G5:J5),"") -> 90.03 | AA5: =IF(L5="","",SUM($L5:L5)) -> 21.84 | AB5: =IF(M5="","",SUM($L5:M5)) -> 65.07 | AC5: =IF(N5="","",SUM($L5:N5)) -> 103.41 | AD5: =IF(O5="","",SUM($L5:O5)) -> 119.04 | AF5: =IF(Q5="","",SUM($Q5:Q5)) -> 24.233 | AG5: =IF(R5="","",SUM($Q5:R5)) -> 72.585 | AH5: =IF(S5="","",SUM($Q5:S5)) -> 111.733053 | AI5: =IF(T5="","",SUM($Q5:T5)) -> 
A6: Other | D6: 0 | E6: 3.7 | O6: 3.7 | Q6: 5.688 | R6: 11.424 | S6: 5.581942 | V6: =IF(G6>0,SUM($G6:G6),"") ->  | W6: =IF(H6>0,SUM($G6:H6),"") ->  | X6: =IF(I6>0,SUM($G6:I6),"") ->  | Y6: =IF(J6>0,SUM($G6:J6),"") ->  | AA6: =IF(L6="","",SUM($L6:L6)) ->  | AB6: =IF(M6="","",SUM($L6:M6)) ->  | AC6: =IF(N6="","",SUM($L6:N6)) ->  | AD6: =IF(O6="","",SUM($L6:O6)) -> 3.7 | AF6: =IF(Q6="","",SUM($Q6:Q6)) -> 5.688 | AG6: =IF(R6="","",SUM($Q6:R6)) -> 17.112 | AH6: =IF(S6="","",SUM($Q6:S6)) -> 22.693942 | AI6: =IF(T6="","",SUM($Q6:T6)) -> 
A8: RES Third Party (excl. Hydro) | C8: 7934.469945 | D8: =SUM(G8:J8) -> 8128.56 | E8: =IF(O8<>"",SUM(L8:O8),"") -> 7499 | G8: 2354.79 | H8: 1850.57 | I8: 1873.91 | J8: 2049.29 | L8: 2214 | M8: 1799 | N8: 1851 | O8: 1635 | Q8: 1592 | R8: 1912 | S8: 1773 | V8: 2354.785195 | W8: 4205.351853 | X8: 6079.263389 | Y8: 8128.55224 | AA8: =IF(L8="","",SUM($L8:L8)) -> 2214 | AB8: =IF(M8="","",SUM($L8:M8)) -> 4013 | AC8: =IF(N8="","",SUM($L8:N8)) -> 5864 | AD8: =IF(O8="","",SUM($L8:O8)) -> 7499 | AF8: =IF(Q8="","",SUM($Q8:Q8)) -> 1592 | AG8: =IF(R8="","",SUM($Q8:R8)) -> 3504 | AH8: =IF(S8="","",SUM($Q8:S8)) -> 5277 | AI8: =IF(T8="","",SUM($Q8:T8)) -> 
D9: =D3/(D3+D8) -> 0.1410329297 | E9: 0.1558573862 | G9: 0.1441079938 | H9: 0.1304897359 | I9: 0.1449697257 | J9: 0.1432698297 | L9: 0.1433877583 | M9: 0.1410550842 | N9: 0.1073452322 | O9: 0.2327365729 | Q9: 0.2638637075 | R9: 0.2044252597 | S9: =S3/(S3+S8) -> 0.2004294863 | AA9: =AA3/(AA3+AA8) -> 0.1433877583 | AB9: 0.1423436054 | AC9: 0.1315963285 | AD9: 0.1558573862 | AF9: 0.2638637075 | AG9: 0.2325781105 | AH9: 0.2220689415
G11: =G1 -> 2023 | L11: =L1 -> 2024 | Q11: =Q1 -> 2025 | V11: =#REF! ->  | AA11: =AA1 -> 2024 | AF11: =AF1 -> 2025
A12: PPC Generation - Bulgaria (in GWh) | C12: =#REF! ->  | D12: =D2 -> 2023 | E12: =E2 -> 2024 | G12: Q1 | H12: Q2 | I12: Q3 | J12: Q4 | L12: Q1 | M12: Q2 | N12: Q3 | O12: Q4 | Q12: Q1 | R12: Q2 | S12: Q3 | T12: Q4 | V12: Q1 | W12: H1 | X12: 9M | Y12: FY | AA12: Q1 | AB12: H1 | AC12: 9M | AD12: FY | AF12: Q1 | AG12: H1 | AH12: 9M | AI12: FY
A13: PPC - Bulgaria | D13: =IF(D14="","",D14) ->  | E13: =IF(E14="","",E14) -> 10 | G13: =IF(G14="","",G14) ->  | L13: =IF(L14="","",L14) ->  | O13: 10 | Q13: =IF(Q14="","",Q14) -> 12.24 | R13: 7.2 | S13: 7.057739 | V13: =IF(V14="","",V14) ->  | AA13: =IF(AA14="","",AA14) ->  | AD13: 10 | AF13: =IF(AF14="","",AF14) -> 12.24 | AG13: 19.44 | AH13: 26.497739
A14: Wind | E14: =SUM(L14:O14) -> 10 | O14: 10 | Q14: 12.24 | R14: 7.2 | S14: 7.057739 | V14: =IF(G14>0,SUM($G14:G14),"") ->  | W14: =IF(H14>0,SUM($G14:H14),"") ->  | X14: =IF(I14>0,SUM($G14:I14),"") ->  | Y14: =IF(J14>0,SUM($G14:J14),"") ->  | AA14: =IF(L14="","",SUM($L14:L14)) ->  | AB14: =IF(M14="","",SUM($L14:M14)) ->  | AC14: =IF(N14="","",SUM($L14:N14)) ->  | AD14: =IF(O14="","",SUM($L14:O14)) -> 10 | AF14: =IF(Q14="","",SUM($Q14:Q14)) -> 12.24 | AG14: =IF(R14="","",SUM($Q14:R14)) -> 19.44 | AH14: =IF(S14="","",SUM($Q14:S14)) -> 26.497739 | AI14: =IF(T14="","",SUM($Q14:T14)) -> 
G16: =G1 -> 2023 | L16: =L1 -> 2024 | Q16: =Q1 -> 2025 | V16: =#REF! ->  | AA16: =AA1 -> 2024 | AF16: =AF1 -> 2025
A17: PPC Generation - Italia (in GWh) | C17: =#REF! ->  | D17: =D2 -> 2023 | E17: =E2 -> 2024 | G17: Q1 | H17: Q2 | I17: Q3 | J17: Q4 | L17: Q1 | M17: Q2 | N17: Q3 | O17: Q4 | Q17: Q1 | R17: Q2 | S17: Q3 | T17: Q4 | V17: Q1 | W17: H1 | X17: 9M | Y17: FY | AA17: Q1 | AB17: H1 | AC17: 9M | AD17: FY | AF17: Q1 | AG17: H1 | AH17: 9M | AI17: FY
A18: PPC - Italia | D18: =IF(D19="","",D19) ->  | E18: =IF(E19="","",E19) ->  | G18: =IF(G19="","",G19) ->  | L18: =IF(L19="","",L19) ->  | Q18: =IF(Q19="","",Q19) ->  | R18: 1.8 | S18: 17.9 | V18: =IF(V19="","",V19) ->  | AA18: =IF(AA19="","",AA19) ->  | AF18: =IF(AF19="","",AF19) ->  | AG18: 1.8 | AH18: 19.7
A19: Solar | R19: 1.8 | S19: 17.9 | V19: =IF(G19>0,SUM($G19:G19),"") ->  | W19: =IF(H19>0,SUM($G19:H19),"") ->  | X19: =IF(I19>0,SUM($G19:I19),"") ->  | Y19: =IF(J19>0,SUM($G19:J19),"") ->  | AA19: =IF(L19="","",SUM($L19:L19)) ->  | AB19: =IF(M19="","",SUM($L19:M19)) ->  | AC19: =IF(N19="","",SUM($L19:N19)) ->  | AD19: =IF(O19="","",SUM($L19:O19)) ->  | AF19: =IF(Q19="","",SUM($Q19:Q19)) ->  | AG19: =IF(R19="","",SUM($Q19:R19)) -> 1.8 | AH19: =IF(S19="","",SUM($Q19:S19)) -> 19.7 | AI19: =IF(T19="","",SUM($Q19:T19)) -> 

Sheet Data (hidden)
A1: =IF(B1=1,TRUE,FALSE) -> FALSE | B1: 2 | G1: 2023 | L1: 2024 | Q1: 2025 | V1: =G1 -> 2023 | AA1: =L1 -> 2024 | AF1: =Q1 -> 2025
A2: Greece (in GWh) | C2: 2022 | D2: 2023 | E2: 2024 | G2: Q1 | H2: Q2 | I2: Q3 | J2: Q4 | L2: Q1 | M2: Q2 | N2: Q3 | O2: Q4 | Q2: Q1 | R2: Q2 | S2: Q3 | T2: Q4 | V2: Q1 | W2: H1 | X2: 9M | Y2: FY | AA2: Q1 | AB2: H1 | AC2: 9M | AD2: FY | AF2: Q1 | AG2: H1 | AH2: 9M | AI2: FY
A4: PPC sales | C4: 29882 | D4: =SUM(G4:J4) -> 26044.66 | E4: =IF(O4<>"",SUM(L4:O4),"") -> 24792.4 | G4: 6865.45 | H4: 5688.86 | I4: 7480.54 | J4: 6009.81 | L4: 5768.37 | M4: 5786.96 | N4: 7169.98 | O4: 6067.09 | Q4: 5887.99 | R4: 5727.976 | S4: 7315.785992 | V4: =IF(G4>0,SUM($G4:G4),"") -> 6865.45 | W4: =IF(H4>0,SUM($G4:H4),"") -> 12554.31 | X4: =IF(I4>0,SUM($G4:I4),"") -> 20034.85 | Y4: =IF(J4>0,SUM($G4:J4),"") -> 26044.66 | AA4: =IF(L4="","",SUM($L4:L4)) -> 5768.37 | AB4: =IF(M4="","",SUM($L4:M4)) -> 11555.33 | AC4: =IF(N4="","",SUM($L4:N4)) -> 18725.31 | AD4: =IF(O4="","",SUM($L4:O4)) -> 24792.4 | AF4: =IF(Q4="","",SUM($Q4:Q4)) -> 5887.99 | AG4: =IF(R4="","",SUM($Q4:R4)) -> 11615.966 | AH4: =IF(S4="","",SUM($Q4:S4)) -> 18931.75199 | AI4: =IF(T4="","",SUM($Q4:T4)) -> 
A5: Third Party Sales (estimation) | C5: 18011 | D5: =SUM(G5:J5) -> 20043.73 | E5: 24148.73 | G5: 4426.44 | H5: 4598 | I5: 5882.03 | J5: 5137.26 | L5: 5627.4 | M5: 5808.94 | N5: 6921.88 | O5: 5790.51 | Q5: 5851.146 | R5: 5670.94 | S5: 6724.747971 | V5: =IF(G5>0,SUM($G5:G5),"") -> 4426.44 | W5: =IF(H5>0,SUM($G5:H5),"") -> 9024.44 | X5: =IF(I5>0,SUM($G5:I5),"") -> 14906.47 | Y5: =IF(J5>0,SUM($G5:J5),"") -> 20043.73 | AA5: =IF(L5="","",SUM($L5:L5)) -> 5627.4 | AB5: =IF(M5="","",SUM($L5:M5)) -> 11436.34 | AC5: =IF(N5="","",SUM($L5:N5)) -> 18358.22 | AD5: =IF(O5="","",SUM($L5:O5)) -> 24148.73 | AF5: =IF(Q5="","",SUM($Q5:Q5)) -> 5851.146 | AG5: =IF(R5="","",SUM($Q5:R5)) -> 11522.086 | AH5: =IF(S5="","",SUM($Q5:S5)) -> 18246.83397 | AI5: =IF(T5="","",SUM($Q5:T5)) -> 
A7: Domestic Demand1 | C7: 55576 | D7: =SUM(G7:J7) -> 54066.73 | E7: =IF(O7<>"",SUM(L7:O7),"") -> 56981.2 | G7: 13232.42 | H7: 12291.9 | I7: 15968.66 | J7: 12573.75 | L7: 13500.99 | M7: 13412.47 | N7: 16824.24 | O7: 13243.5 | Q7: 13761.139 | R7: 13037 | S7: 16601.82263 | V7: =IF(G7>0,SUM($G7:G7),"") -> 13232.42 | W7: =IF(H7>0,SUM($G7:H7),"") -> 25524.32 | X7: =IF(I7>0,SUM($G7:I7),"") -> 41492.98 | Y7: =IF(J7>0,SUM($G7:J7),"") -> 54066.73 | AA7: =IF(L7="","",SUM($L7:L7)) -> 13500.99 | AB7: =IF(M7="","",SUM($L7:M7)) -> 26913.46 | AC7: =IF(N7="","",SUM($L7:N7)) -> 43737.7 | AD7: =IF(O7="","",SUM($L7:O7)) -> 56981.2 | AF7: =IF(Q7="","",SUM($Q7:Q7)) -> 13761.139 | AG7: =IF(R7="","",SUM($Q7:R7)) -> 26798.139 | AH7: =IF(S7="","",SUM($Q7:S7)) -> 43399.96163
A8: Domestic Demand (Mainland) | C8: 50688 | D8: =SUM('Demand (IPTO)'!B2:M2) -> 49490 | E8: =SUM('Demand (IPTO)'!B3:M3) -> 51812.5 | G8: ='Demand (IPTO)'!O2 -> 12350 | H8: ='Demand (IPTO)'!P2 -> 11169 | I8: ='Demand (IPTO)'!Q2 -> 14328 | J8: ='Demand (IPTO)'!R2 -> 11643 | L8: =IF('Demand (IPTO)'!O3>0,'Demand (IPTO)'!O3,"") -> 12458 | M8: =IF('Demand (IPTO)'!P3>0,'Demand (IPTO)'!P3,"") -> 12115.5 | N8: =IF('Demand (IPTO)'!Q3>0,'Demand (IPTO)'!Q3,"") -> 15062 | O8: =IF('Demand (IPTO)'!R3>0,'Demand (IPTO)'!R3,"") -> 12177 | Q8: 12752 | R8: 11975 | S8: 14667 | T8: =IF('Demand (IPTO)'!R4>0,'Demand (IPTO)'!R4,"") ->  | V8: =IF(G8>0,SUM($G8:G8),"") -> 12350 | W8: =IF(H8>0,SUM($G8:H8),"") -> 23519 | X8: =IF(I8>0,SUM($G8:I8),"") -> 37847 | Y8: =IF(J8>0,SUM($G8:J8),"") -> 49490 | AA8: =IF(L8="","",SUM($L8:L8)) -> 12458 | AB8: =IF(M8="","",SUM($L8:M8)) -> 24573.5 | AC8: =IF(N8="","",SUM($L8:N8)) -> 39635.5 | AD8: =IF(O8="","",SUM($L8:O8)) -> 51812.5 | AF8: =IF(Q8="","",SUM($Q8:Q8)) -> 12752 | AG8: =IF(R8="","",SUM($Q8:R8)) -> 24727 | AH8: =IF(S8="","",SUM($Q8:S8)) -> 39394 | AI8: =IF(T8="","",SUM($Q8:T8)) -> 
A10: 1. Domestic Demand is Total Demand minus exports.
G13: =$G$1 -> 2023 | L13: =$L$1 -> 2024 | Q13: =$Q$1 -> 2025 | V13: =$V$1 -> 2023 | AA13: =AA1 -> 2024 | AF13: =AF1 -> 2025
A14: Romania (in GWh) | C14: =C2 -> 2022 | D14: =D2 -> 2023 | E14: =E2 -> 2024 | G14: Q1 | H14: Q2 | I14: Q3 | J14: Q4 | L14: Q1 | M14: Q2 | N14: Q3 | O14: Q4 | Q14: Q1 | R14: Q2 | S14: Q3 | T14: Q4 | V14: Q1 | W14: H1 | X14: 9M | Y14: FY | AA14: Q1 | AB14: H1 | AC14: 9M | AD14: FY | AF14: Q1 | AG14: H1 | AH14: 9M | AI14: FY
A16: PPC Romania sales | C16: 9852 | D16: =SUM(G16:J16) -> 8237.9 | E16: =IF(O16<>"",SUM(L16:O16),"") -> 7696.99 | G16: 2338.52 | H16: 1946.58 | I16: 2032.6 | J16: 1920.2 | L16: 1892.19 | M16: 1747.56 | N16: 2012.22 | O16: 2045.02 | Q16: 1991.45 | R16: 1755.594 | S16: 1875.747978 | V16: =IF(G16>0,SUM($G16:G16),"") -> 2338.52 | W16: =IF(H16>0,SUM($G16:H16),"") -> 4285.1 | X16: =IF(I16>0,SUM($G16:I16),"") -> 6317.7 | Y16: =IF(J16>0,SUM($G16:J16),"") -> 8237.9 | AA16: =IF(L16="","",SUM($L16:L16)) -> 1892.19 | AB16: =IF(M16="","",SUM($L16:M16)) -> 3639.75 | AC16: =IF(N16="","",SUM($L16:N16)) -> 5651.97 | AD16: =IF(O16="","",SUM($L16:O16)) -> 7696.99 | AF16: =IF(Q16="","",SUM($Q16:Q16)) -> 1991.45 | AG16: =IF(R16="","",SUM($Q16:R16)) -> 3747.044 | AH16: =IF(S16="","",SUM($Q16:S16)) -> 5622.791978 | AI16: =IF(T16="","",SUM($Q16:T16)) -> 
A17: Third Party Sales (estimation) | C17: 37338 | D17: 37857 | E17: 40411 | G17: 8998 | H17: 9098 | I17: 9841 | J17: 9920 | L17: 10133 | M17: 9721 | N17: 10252 | O17: 10305 | Q17: 10167.812 | R17: 9824 | S17: 10599.81312 | V17: =IF(G17>0,SUM($G17:G17),"") -> 8998 | W17: =IF(H17>0,SUM($G17:H17),"") -> 18096 | X17: =IF(I17>0,SUM($G17:I17),"") -> 27937 | Y17: =IF(J17>0,SUM($G17:J17),"") -> 37857 | AA17: =IF(L17="","",SUM($L17:L17)) -> 10133 | AB17: =IF(M17="","",SUM($L17:M17)) -> 19854 | AC17: =IF(N17="","",SUM($L17:N17)) -> 30106 | AD17: =IF(O17="","",SUM($L17:O17)) -> 40411 | AF17: =IF(Q17="","",SUM($Q17:Q17)) -> 10167.812 | AG17: =IF(R17="","",SUM($Q17:R17)) -> 19991.812 | AH17: =IF(S17="","",SUM($Q17:S17)) -> 30591.62512 | AI17: =IF(T17="","",SUM($Q17:T17)) -> 
A19: Demand | C19: 53726.82888 | D19: =SUM(G19:J19) -> 51052.46 | E19: =IF(O19<>"",SUM(L19:O19),"") -> 53330.34 | G19: 13327.63 | H19: 11989.05 | I19: 12524.88 | J19: 13210.9 | L19: 13740.46 | M19: 12409.28 | N19: 13184.6 | O19: 13996 | Q19: 13919.385 | R19: 12465 | S19: 12780.22893 | V19: =IF(G19>0,SUM($G19:G19),"") -> 13327.63 | W19: =IF(H19>0,SUM($G19:H19),"") -> 25316.68 | X19: =IF(I19>0,SUM($G19:I19),"") -> 37841.56 | Y19: =IF(J19>0,SUM($G19:J19),"") -> 51052.46 | AA19: =IF(L19="","",SUM($L19:L19)) -> 13740.46 | AB19: =IF(M19="","",SUM($L19:M19)) -> 26149.74 | AC19: =IF(N19="","",SUM($L19:N19)) -> 39334.34 | AD19: =IF(O19="","",SUM($L19:O19)) -> 53330.34 | AF19: =IF(Q19="","",SUM($Q19:Q19)) -> 13919.385 | AG19: =IF(R19="","",SUM($Q19:R19)) -> 26384.385 | AH19: =IF(S19="","",SUM($Q19:S19)) -> 39164.61393 | AI19: =IF(T19="","",SUM($Q19:T19)) -> 
G23: =$G$1 -> 2023 | L23: =$L$1 -> 2024 | Q23: =$Q$1 -> 2025 | V23: =$V$1 -> 2023 | AA23: =AA1 -> 2024 | AF23: =AF1 -> 2025
A24: PPC Generation - Greece (in GWh) | C24: =C2 -> 2022 | D24: =D2 -> 2023 | E24: =E2 -> 2024 | G24: Q1 | H24: Q2 | I24: Q3 | J24: Q4 | L24: Q1 | M24: Q2 | N24: Q3 | O24: Q4 | Q24: Q1 | R24: Q2 | S24: Q3 | T24: Q4 | V24: Q1 | W24: H1 | X24: 9M | Y24: FY | AA24: Q1 | AB24: H1 | AC24: 9M | AD24: FY | AF24: Q1 | AG24: H1 | AH24: 9M | AI24: FY
A26: PPC Generation | C26: =SUM(C27:C30) -> 22602 | D26: =SUM(D27:D30) -> 19279.73 | E26: =SUM(E27:E30) -> 19614.56 | G26: =IF(SUM(G27:G30)=0,"",SUM(G27:G30)) -> 4286.24 | H26: =IF(SUM(H27:H30)=0,"",SUM(H27:H30)) -> 3861.87 | I26: 6069.17 | J26: 5062.45 | L26: =IF(SUM(L27:L30)=0,"",SUM(L27:L30)) -> 4244.22 | M26: =IF(SUM(M27:M30)=0,"",SUM(M27:M30)) -> 4446.64 | N26: 6059.71 | O26: 4863.99 | Q26: =IF(SUM(Q27:Q30)=0,"",SUM(Q27:Q30)) -> 4991.361 | R26: =IF(SUM(R27:R30)=0,"",SUM(R27:R30)) -> 3741.939 | S26: 5008.552 | V26: =IF(G26>0,SUM($G26:G26),"") -> 4286.24 | W26: =IF(H26>0,SUM($G26:H26),"") -> 8148.11 | X26: =IF(I26>0,SUM($G26:I26),"") -> 14217.28 | Y26: =IF(J26>0,SUM($G26:J26),"") -> 19279.73 | AA26: =IF(L26="","",SUM($L26:L26)) -> 4244.22 | AB26: =IF(M26="","",SUM($L26:M26)) -> 8690.86 | AC26: =IF(N26="","",SUM($L26:N26)) -> 14750.57 | AD26: =IF(O26="","",SUM($L26:O26)) -> 19614.56 | AF26: =IF(Q26="","",SUM($Q26:Q26)) -> 4991.361 | AG26: =IF(R26="","",SUM($Q26:R26)) -> 8733.3 | AH26: =IF(S26="","",SUM($Q26:S26)) -> 13741.852 | AI26: =IF(T26="","",SUM($Q26:T26)) -> 
A27: Lignite | C27: 5460 | D27: =SUM(G27:J27) -> 4513.21 | E27: =IF(O27<>"",SUM(L27:O27),"") -> 3236.31 | G27: 1445.47 | H27: 693.39 | I27: 1149.96 | J27: 1224.39 | L27: 1050.23 | M27: 448.14 | N27: 826.17 | O27: 911.77 | Q27: 1127.21 | R27: 285.345 | S27: 503.902 | V27: =IF(G27>0,SUM($G27:G27),"") -> 1445.47 | W27: =IF(H27>0,SUM($G27:H27),"") -> 2138.86 | X27: =IF(I27>0,SUM($G27:I27),"") -> 3288.82 | Y27: =IF(J27>0,SUM($G27:J27),"") -> 4513.21 | AA27: =IF(L27="","",SUM($L27:L27)) -> 1050.23 | AB27: =IF(M27="","",SUM($L27:M27)) -> 1498.37 | AC27: =IF(N27="","",SUM($L27:N27)) -> 2324.54 | AD27: =IF(O27="","",SUM($L27:O27)) -> 3236.31 | AF27: =IF(Q27="","",SUM($Q27:Q27)) -> 1127.21 | AG27: =IF(R27="","",SUM($Q27:R27)) -> 1412.555 | AH27: =IF(S27="","",SUM($Q27:S27)) -> 1916.457 | AI27: =IF(T27="","",SUM($Q27:T27)) -> 
A28: Natural Gas | C28: 8678 | D28: 6284.39 | E28: =IF(O28<>"",SUM(L28:O28),"") -> 7711.4 | G28: 1179.57 | H28: 1417.35 | I28: 2048.47 | J28: 1639 | L28: 1330.39 | M28: 1774.72 | N28: 2297.51 | O28: 2308.78 | Q28: 2253.07 | R28: 1426.019 | S28: 1685.044 | V28: =IF(G28>0,SUM($G28:G28),"") -> 1179.57 | W28: =IF(H28>0,SUM($G28:H28),"") -> 2596.92 | X28: =IF(I28>0,SUM($G28:I28),"") -> 4645.39 | Y28: =IF(J28>0,SUM($G28:J28),"") -> 6284.39 | AA28: =IF(L28="","",SUM($L28:L28)) -> 1330.39 | AB28: =IF(M28="","",SUM($L28:M28)) -> 3105.11 | AC28: =IF(N28="","",SUM($L28:N28)) -> 5402.62 | AD28: =IF(O28="","",SUM($L28:O28)) -> 7711.4 | AF28: =IF(Q28="","",SUM($Q28:Q28)) -> 2253.07 | AG28: =IF(R28="","",SUM($Q28:R28)) -> 3679.089 | AH28: =IF(S28="","",SUM($Q28:S28)) -> 5364.133 | AI28: =IF(T28="","",SUM($Q28:T28)) -> 
A29: Oil | C29: 3973 | D29: 3685.01 | E29: 3870.43 | G29: 680.37 | H29: 849.33 | I29: 1395.4 | J29: 759.91 | L29: 678.85 | M29: 979.76 | N29: 1434.01 | O29: 777.81 | Q29: 681.07 | R29: 892.755 | S29: 1369.756 | V29: =IF(G29>0,SUM($G29:G29),"") -> 680.37 | W29: =IF(H29>0,SUM($G29:H29),"") -> 1529.7 | X29: =IF(I29>0,SUM($G29:I29),"") -> 2925.1 | Y29: =IF(J29>0,SUM($G29:J29),"") -> 3685.01 | AA29: =IF(L29="","",SUM($L29:L29)) -> 678.85 | AB29: =IF(M29="","",SUM($L29:M29)) -> 1658.61 | AC29: =IF(N29="","",SUM($L29:N29)) -> 3092.62 | AD29: =IF(O29="","",SUM($L29:O29)) -> 3870.43 | AF29: =IF(Q29="","",SUM($Q29:Q29)) -> 681.07 | AG29: =IF(R29="","",SUM($Q29:R29)) -> 1573.825 | AH29: =IF(S29="","",SUM($Q29:S29)) -> 2943.581 | AI29: =IF(T29="","",SUM($Q29:T29)) -> 
A30: RES | C30: 4491 | D30: =SUM(G30:J30) -> 4797.12 | E30: =IF(O30<>"",SUM(L30:O30),"") -> 4796.42 | G30: 980.83 | H30: 901.8 | I30: 1475.34 | J30: 1439.15 | L30: 1184.75 | M30: 1244.02 | N30: 1502.02 | O30: 865.63 | Q30: 930.011 | R30: 1137.82 | S30: 1449.85 | V30: =IF(G30>0,SUM($G30:G30),"") -> 980.83 | W30: =IF(H30>0,SUM($G30:H30),"") -> 1882.63 | X30: =IF(I30>0,SUM($G30:I30),"") -> 3357.97 | Y30: =IF(J30>0,SUM($G30:J30),"") -> 4797.12 | AA30: =IF(L30="","",SUM($L30:L30)) -> 1184.75 | AB30: =IF(M30="","",SUM($L30:M30)) -> 2428.77 | AC30: =IF(N30="","",SUM($L30:N30)) -> 3930.79 | AD30: =IF(O30="","",SUM($L30:O30)) -> 4796.42 | AF30: =IF(Q30="","",SUM($Q30:Q30)) -> 930.011 | AG30: =IF(R30="","",SUM($Q30:R30)) -> 2067.831 | AH30: =IF(S30="","",SUM($Q30:S30)) -> 3517.681 | AI30: =IF(T30="","",SUM($Q30:T30)) -> 
A32: Third Party Generation | C32: 29422 | D32: =SUM(G32:J32) -> 29494.76 | E32: =IF(O32<>"",SUM(L32:O32),"") -> 37389.37 | G32: 6677.29 | H32: 7009.98 | I32: 8947.07 | J32: 6860.42 | L32: 8532.5 | M32: 9178.62 | N32: 10240.32 | O32: 9437.93 | Q32: 9535.693 | R32: 9171.36 | S32: 12410.95 | V32: =IF(G32>0,SUM($G32:G32),"") -> 6677.29 | W32: =IF(H32>0,SUM($G32:H32),"") -> 13687.27 | X32: =IF(I32>0,SUM($G32:I32),"") -> 22634.34 | Y32: =IF(J32>0,SUM($G32:J32),"") -> 29494.76 | AA32: =IF(L32="","",SUM($L32:L32)) -> 8532.5 | AB32: =IF(M32="","",SUM($L32:M32)) -> 17711.12 | AC32: =IF(N32="","",SUM($L32:N32)) -> 27951.44 | AD32: =IF(O32="","",SUM($L32:O32)) -> 37389.37 | AF32: =IF(Q32="","",SUM($Q32:Q32)) -> 9535.693 | AG32: =IF(R32="","",SUM($Q32:R32)) -> 18707.053 | AH32: =IF(S32="","",SUM($Q32:S32)) -> 31118.003 | AI32: =IF(T32="","",SUM($Q32:T32)) -> 
G35: =G$1 -> 2023 | L35: =L$1 -> 2024 | Q35: =Q$1 -> 2025 | V35: =V$1 -> 2023 | AA35: =AA$1 -> 2024 | AF35: =AF$1 -> 2025
A36: PPC Generation - International (in GWh) | C36: =C2 -> 2022 | D36: =D2 -> 2023 | E36: =E2 -> 2024 | G36: Q1 | H36: Q2 | I36: Q3 | J36: Q4 | L36: Q1 | M36: Q2 | N36: Q3 | O36: Q4 | Q36: Q1 | R36: Q2 | S36: Q3 | T36: Q4 | V36: Q1 | W36: H1 | X36: 9M | Y36: FY | AA36: Q1 | AB36: H1 | AC36: 9M | AD36: FY | AF36: Q1 | AG36: H1 | AH36: 9M | AI36: FY
A37: PPC - International | D37: =IF(SUM(D38:D40)="","",SUM(D38:D40)) -> 1334.62 | E37: =IF(SUM(E38:E40)="","",SUM(E38:E40)) -> 1394.57 | G37: =IF(SUM(G38:G40)="","",SUM(G38:G40)) -> 396.48 | H37: 277.72 | I37: 317.72 | J37: 342.7 | L37: =IF(SUM(L38:L40)="","",SUM(L38:L40)) -> 370.6 | M37: 295.43 | N37: 222.59 | O37: 505.95 | Q37: =IF(SUM(Q38:Q40)="","",SUM(Q38:Q40)) -> 582.883 | R37: 500.294 | S37: 469.3981893 | T37: =IF(T38="","",T38) ->  | V37: =IF(V38="","",V38) -> 389.14 | W37: 654.39 | X37: 921.66 | Y37: 1244.59 | AA37: =IF(SUM(AA38:AA40)="","",SUM(AA38:AA40)) -> 370.6 | AB37: 666.03 | AC37: 888.62 | AD37: 1394.57 | AF37: =IF(SUM(AF38:AF40)="","",SUM(AF38:AF40)) -> 582.883 | AG37: 1083.177 | AH37: 1552.575189 | AI37: =IF(AI38="","",AI38) -> 
A38: Wind | D38: =SUM(G38:J38) -> 1244.59 | E38: =SUM(L38:O38) -> 1271.83 | G38: ='Data (2)'!G14+'Data (2)'!G4 -> 389.14 | H38: ='Data (2)'!H14+'Data (2)'!H4 -> 265.25 | I38: ='Data (2)'!I14+'Data (2)'!I4 -> 267.27 | J38: ='Data (2)'!J14+'Data (2)'!J4 -> 322.93 | L38: ='Data (2)'!L14+'Data (2)'!L4 -> 348.76 | M38: ='Data (2)'!M14+'Data (2)'!M4 -> 252.2 | N38: ='Data (2)'!N14+'Data (2)'!N4 -> 184.25 | O38: ='Data (2)'!O14+'Data (2)'!O4 -> 486.62 | Q38: ='Data (2)'!Q14+'Data (2)'!Q4 -> 552.962 | R38: ='Data (2)'!R14+'Data (2)'!R4 -> 438.718 | S38: ='Data (2)'!S14+'Data (2)'!S4 -> 406.7681943 | V38: =IF(G38>0,SUM($G38:G38),"") -> 389.14 | W38: =IF(H38>0,SUM($G38:H38),"") -> 654.39 | X38: =IF(I38>0,SUM($G38:I38),"") -> 921.66 | Y38: =IF(J38>0,SUM($G38:J38),"") -> 1244.59 | AA38: =IF(L38="","",SUM($L38:L38)) -> 348.76 | AB38: =IF(M38="","",SUM($L38:M38)) -> 600.96 | AC38: =IF(N38="","",SUM($L38:N38)) -> 785.21 | AD38: =IF(O38="","",SUM($L38:O38)) -> 1271.83 | AF38: =IF(Q38="","",SUM($Q38:Q38)) -> 552.962 | AG38: =IF(R38="","",SUM($Q38:R38)) -> 991.68 | AH38: =IF(S38="","",SUM($Q38:S38)) -> 1398.448194 | AI38: =IF(T38="","",SUM($Q38:T38)) -> 
A39: Solar | D39: =SUM(G39:J39) -> 90.03 | E39: =SUM(L39:O39) -> 119.04 | G39: ='Data (2)'!G19+'Data (2)'!G5 -> 7.34 | H39: ='Data (2)'!H19+'Data (2)'!H5 -> 12.47 | I39: ='Data (2)'!I19+'Data (2)'!I5 -> 50.45 | J39: ='Data (2)'!J19+'Data (2)'!J5 -> 19.77 | L39: ='Data (2)'!L19+'Data (2)'!L5 -> 21.84 | M39: ='Data (2)'!M19+'Data (2)'!M5 -> 43.23 | N39: ='Data (2)'!N19+'Data (2)'!N5 -> 38.34 | O39: ='Data (2)'!O19+'Data (2)'!O5 -> 15.63 | Q39: ='Data (2)'!Q19+'Data (2)'!Q5 -> 24.233 | R39: ='Data (2)'!R19+'Data (2)'!R5 -> 50.152 | S39: ='Data (2)'!S19+'Data (2)'!S5 -> 57.048053 | V39: =IF(G39>0,SUM($G39:G39),"") -> 7.34 | W39: =IF(H39>0,SUM($G39:H39),"") -> 19.81 | X39: =IF(I39>0,SUM($G39:I39),"") -> 70.26 | Y39: =IF(J39>0,SUM($G39:J39),"") -> 90.03 | AA39: =IF(L39="","",SUM($L39:L39)) -> 21.84 | AB39: =IF(M39="","",SUM($L39:M39)) -> 65.07 | AC39: =IF(N39="","",SUM($L39:N39)) -> 103.41 | AD39: =IF(O39="","",SUM($L39:O39)) -> 119.04 | AF39: =IF(Q39="","",SUM($Q39:Q39)) -> 24.233 | AG39: =IF(R39="","",SUM($Q39:R39)) -> 74.385 | AH39: =IF(S39="","",SUM($Q39:S39)) -> 131.433053 | AI39: =IF(T39="","",SUM($Q39:T39)) -> 
A40: Other | D40: 0 | E40: =SUM(L40:O40) -> 3.7 | G40: ='Data (2)'!G6 -> 0 | H40: ='Data (2)'!H6 -> 0 | I40: ='Data (2)'!I6 -> 0 | J40: ='Data (2)'!J6 -> 0 | L40: ='Data (2)'!L6 -> 0 | M40: ='Data (2)'!M6 -> 0 | N40: ='Data (2)'!N6 -> 0 | O40: ='Data (2)'!O6 -> 3.7 | Q40: ='Data (2)'!Q6 -> 5.688 | R40: ='Data (2)'!R6 -> 11.424 | S40: ='Data (2)'!S6 -> 5.581942 | V40: =IF(G40>0,SUM($G40:G40),"") ->  | W40: =IF(H40>0,SUM($G40:H40),"") ->  | X40: =IF(I40>0,SUM($G40:I40),"") ->  | Y40: =IF(J40>0,SUM($G40:J40),"") ->  | AA40: =IF(L40="","",SUM($L40:L40)) -> 0 | AB40: =IF(M40="","",SUM($L40:M40)) -> 0 | AC40: =IF(N40="","",SUM($L40:N40)) -> 0 | AD40: =IF(O40="","",SUM($L40:O40)) -> 3.7 | AF40: =IF(Q40="","",SUM($Q40:Q40)) -> 5.688 | AG40: =IF(R40="","",SUM($Q40:R40)) -> 17.112 | AH40: =IF(S40="","",SUM($Q40:S40)) -> 22.693942 | AI40: =IF(T40="","",SUM($Q40:T40)) -> 
G42: =G$1 -> 2023 | L42: =L$1 -> 2024 | Q42: =Q$1 -> 2025 | V42: =V$1 -> 2023 | AA42: =AA$1 -> 2024 | AF42: =AF$1 -> 2025
A43: PPC Market Shares - Greece | C43: =C2 -> 2022 | D43: =D2 -> 2023 | E43: =E2 -> 2024 | G43: Q1 | H43: Q2 | I43: Q3 | J43: Q4 | L43: Q1 | M43: Q2 | N43: Q3 | O43: Q4 | Q43: Q1 | R43: Q2 | S43: Q3 | T43: Q4 | V43: Q1 | W43: H1 | X43: 9M | Y43: FY | AA43: Q1 | AB43: H1 | AC43: 9M | AD43: FY | AF43: Q1 | AG43: H1 | AH43: 9M | AI43: FY
A45: Generation Market Share (average) | C45: 0.4344533292 | D45: =(D26/(D26+D32)) -> 0.395283067 | E45: =(E26/(E26+E32)) -> 0.3440913635 | G45: =(G26/(G26+G32)) -> 0.3909543733 | H45: =(H26/(H26+H32)) -> 0.3552173733 | I45: =(I26/(I26+I32)) -> 0.4041737479 | J45: =(J26/(J26+J32)) -> 0.4245999495 | L45: =IF(ISERROR((L26/(L26+L32))),"",(L26/(L26+L32))) -> 0.3321838469 | M45: =IF(ISERROR((M26/(M26+M32))),"",(M26/(M26+M32))) -> 0.3263526714 | N45: =IF(ISERROR((N26/(N26+N32))),"",(N26/(N26+N32))) -> 0.3717606655 | O45: =IF(ISERROR((O26/(O26+O32))),"",(O26/(O26+O32))) -> 0.3400934979 | Q45: =IF(ISERROR((Q26/(Q26+Q32))),"",(Q26/(Q26+Q32))) -> 0.3435907239 | R45: =IF(ISERROR((R26/(R26+R32))),"",(R26/(R26+R32))) -> 0.2897740539 | S45: =IF(ISERROR((S26/(S26+S32))),"",(S26/(S26+S32))) -> 0.2875255561 | T45: =IF(ISERROR((T26/(T26+T32))),"",(T26/(T26+T32))) ->  | V45: =(V26/(V26+V32)) -> 0.3909543733 | W45: =(W26/(W26+W32)) -> 0.3731608976 | X45: =(X26/(X26+X32)) -> 0.3857979649 | Y45: =(Y26/(Y26+Y32)) -> 0.395283067 | AA45: =IF(ISERROR(AA26/(AA26+AA32)),"",(AA26/(AA26+AA32))) -> 0.3321838469 | AB45: =IF(ISERROR(AB26/(AB26+AB32)),"",(AB26/(AB26+AB32))) -> 0.3291745543 | AC45: =IF(ISERROR(AC26/(AC26+AC32)),"",(AC26/(AC26+AC32))) -> 0.3454303439 | AD45: =IF(ISERROR(AD26/(AD26+AD32)),"",(AD26/(AD26+AD32))) -> 0.3440913635 | AF45: =IF(ISERROR(AF26/(AF26+AF32)),"",(AF26/(AF26+AF32))) -> 0.3435907239 | AG45: =IF(ISERROR(AG26/(AG26+AG32)),"",(AG26/(AG26+AG32))) -> 0.3182648561 | AH45: =IF(ISERROR(AH26/(AH26+AH32)),"",(AH26/(AH26+AH32))) -> 0.3063284979 | AI45: =IF(ISERROR(AI26/(AI26+AI32)),"",(AI26/(AI26+AI32))) -> 
A47: Retail Market Share (average) | C47: 0.6239325162 | D47: =D4/(D4+D5) -> 0.5651024043 | E47: =E4/(E4+E5) -> 0.5065759618 | G47: =G4/(G4+G5) -> 0.6079983067 | H47: =H4/(H4+H5) -> 0.5530220106 | I47: =I4/(I4+I5) -> 0.5598129701 | J47: =J4/(J4+J5) -> 0.5391380874 | L47: =IF(ISERROR(L4/(L4+L5)),"",L4/(L4+L5)) -> 0.5061851898 | M47: =IF(ISERROR(M4/(M4+M5)),"",M4/(M4+M5)) -> 0.4990522512 | N47: =IF(ISERROR(N4/(N4+N5)),"",N4/(N4+N5)) -> 0.5088029543 | O47: =IF(ISERROR(O4/(O4+O5)),"",O4/(O4+O5)) -> 0.5116625624 | Q47: =IF(ISERROR(Q4/(Q4+Q5)),"",Q4/(Q4+Q5)) -> 0.5015692807 | R47: =IF(ISERROR(R4/(R4+R5)),"",R4/(R4+R5)) -> 0.5025018168 | S47: =IF(ISERROR(S4/(S4+S5)),"",S4/(S4+S5)) -> 0.5210475621 | T47: =IF(ISERROR(T4/(T4+T5)),"",T4/(T4+T5)) ->  | V47: =V4/(V4+V5) -> 0.6079983067 | W47: =W4/(W4+W5) -> 0.5817904188 | X47: =X4/(X4+X5) -> 0.5733856076 | Y47: =Y4/(Y4+Y5) -> 0.5651024043 | AA47: =IF(ISERROR(AA4/(AA4+AA5)),"",AA4/(AA4+AA5)) -> 0.5061851898 | AB47: =IF(ISERROR(AB4/(AB4+AB5)),"",AB4/(AB4+AB5)) -> 0.5025876763 | AC47: =IF(ISERROR(AC4/(AC4+AC5)),"",AC4/(AC4+AC5)) -> 0.5049495018 | AD47: =IF(ISERROR(AD4/(AD4+AD5)),"",AD4/(AD4+AD5)) -> 0.5065759618 | AF47: =IF(ISERROR(AF4/(AF4+AF5)),"",AF4/(AF4+AF5)) -> 0.5015692807 | AG47: =IF(ISERROR(AG4/(AG4+AG5)),"",AG4/(AG4+AG5)) -> 0.5020286928 | AH47: =IF(ISERROR(AH4/(AH4+AH5)),"",AH4/(AH4+AH5)) -> 0.5092111898 | AI47: =IF(ISERROR(AI4/(AI4+AI5)),"",AI4/(AI4+AI5)) -> 
A48: Retail Market Share (IS end of period)1 | C48: 0.6329 | D48: =J48 -> 0.5611 | E48: =O48 -> 0.5192 | G48: 0.6153 | H48: 0.5499 | I48: 0.541 | J48: 0.5611 | L48: 0.5085 | M48: 0.5253 | N48: 0.506 | O48: 0.5192 | Q48: 0.4987 | R48: 0.4959 | S48: 0.4921 | V48: =IF(G48>0,G48,"") -> 0.6153 | W48: =IF(H48>0,H48,"") -> 0.5499 | X48: =IF(I48>0,I48,"") -> 0.541 | Y48: =IF(J48>0,J48,"") -> 0.5611 | AA48: =IF(L48>0,L48,"") -> 0.5085 | AB48: =IF(M48>0,M48,"") -> 0.5253 | AC48: =IF(N48>0,N48,"") -> 0.506 | AD48: =IF(O48>0,O48,"") -> 0.5192 | AF48: =IF(Q48>0,Q48,"") -> 0.4987 | AG48: =IF(R48>0,R48,"") -> 0.4959 | AH48: =IF(S48>0,S48,"") -> 0.4921 | AI48: =IF(T48>0,T48,"") -> 
A50: 1 ΕnEx monthly report (https://www.enexgroup.gr/el/markets-reports).
A52: PPC Market Shares - Romania
A53: Generation Market Share on RES (average) | C53: 0.1348304498 | D53: =IF(ISERROR('Data (2)'!D3/('Data (2)'!D3+'Data (2)'!D8)),"",'Data (2)'!D3/('Data (2)'!D3+'Data (2)'!D8)) -> 0.1410329297 | E53: =IF(ISERROR('Data (2)'!E3/('Data (2)'!E3+'Data (2)'!E8)),"",'Data (2)'!E3/('Data (2)'!E3+'Data (2)'!E8)) -> 0.1558573862 | G53: =IF(ISERROR('Data (2)'!G3/('Data (2)'!G3+'Data (2)'!G8)),"",'Data (2)'!G3/('Data (2)'!G3+'Data (2)'!G8)) -> 0.1441079938 | H53: =IF(ISERROR('Data (2)'!H3/('Data (2)'!H3+'Data (2)'!H8)),"",'Data (2)'!H3/('Data (2)'!H3+'Data (2)'!H8)) -> 0.1304897359 | I53: =IF(ISERROR('Data (2)'!I3/('Data (2)'!I3+'Data (2)'!I8)),"",'Data (2)'!I3/('Data (2)'!I3+'Data (2)'!I8)) -> 0.1449697257 | J53: =IF(ISERROR('Data (2)'!J3/('Data (2)'!J3+'Data (2)'!J8)),"",'Data (2)'!J3/('Data (2)'!J3+'Data (2)'!J8)) -> 0.1432698297 | L53: =IF(ISERROR('Data (2)'!L3/('Data (2)'!L3+'Data (2)'!L8)),"",'Data (2)'!L3/('Data (2)'!L3+'Data (2)'!L8)) -> 0.1433877583 | M53: =IF(ISERROR('Data (2)'!M3/('Data (2)'!M3+'Data (2)'!M8)),"",'Data (2)'!M3/('Data (2)'!M3+'Data (2)'!M8)) -> 0.1410550842 | N53: =IF(ISERROR('Data (2)'!N3/('Data (2)'!N3+'Data (2)'!N8)),"",'Data (2)'!N3/('Data (2)'!N3+'Data (2)'!N8)) -> 0.1073452322 | O53: =IF(ISERROR('Data (2)'!O3/('Data (2)'!O3+'Data (2)'!O8)),"",'Data (2)'!O3/('Data (2)'!O3+'Data (2)'!O8)) -> 0.2327365729 | Q53: =IF(ISERROR('Data (2)'!Q3/('Data (2)'!Q3+'Data (2)'!Q8)),"",'Data (2)'!Q3/('Data (2)'!Q3+'Data (2)'!Q8)) -> 0.2638637075 | R53: =IF(ISERROR('Data (2)'!R3/('Data (2)'!R3+'Data (2)'!R8)),"",'Data (2)'!R3/('Data (2)'!R3+'Data (2)'!R8)) -> 0.2044252597 | S53: =IF(ISERROR('Data (2)'!S3/('Data (2)'!S3+'Data (2)'!S8)),"",'Data (2)'!S3/('Data (2)'!S3+'Data (2)'!S8)) -> 0.2004294863 | T53: =IF(ISERROR(#REF!/(#REF!+#REF!)),"",#REF!/(#REF!+#REF!)) ->  | V53: =#REF!/(#REF!+#REF!) ->  | W53: =#REF!/(#REF!+#REF!) ->  | X53: =#REF!/(#REF!+#REF!) ->  | Y53: =#REF!/(#REF!+#REF!) ->  | AA53: =IF(ISERROR('Data (2)'!AA3/('Data (2)'!AA3+'Data (2)'!AA8)),"",'Data (2)'!AA3/('Data (2)'!AA3+'Data (2)'!AA8)) -> 0.1433877583 | AB53: =IF(ISERROR('Data (2)'!AB3/('Data (2)'!AB3+'Data (2)'!AB8)),"",'Data (2)'!AB3/('Data (2)'!AB3+'Data (2)'!AB8)) -> 0.1423436054 | AC53: =IF(ISERROR('Data (2)'!AC3/('Data (2)'!AC3+'Data (2)'!AC8)),"",'Data (2)'!AC3/('Data (2)'!AC3+'Data (2)'!AC8)) -> 0.1315963285 | AD53: =IF(ISERROR('Data (2)'!AD3/('Data (2)'!AD3+'Data (2)'!AD8)),"",'Data (2)'!AD3/('Data (2)'!AD3+'Data (2)'!AD8)) -> 0.1558573862 | AF53: =IF(ISERROR('Data (2)'!AF3/('Data (2)'!AF3+'Data (2)'!AF8)),"",'Data (2)'!AF3/('Data (2)'!AF3+'Data (2)'!AF8)) -> 0.2638637075 | AG53: =IF(ISERROR('Data (2)'!AG3/('Data (2)'!AG3+'Data (2)'!AG8)),"",'Data (2)'!AG3/('Data (2)'!AG3+'Data (2)'!AG8)) -> 0.2325781105 | AH53: =IF(ISERROR('Data (2)'!AH3/('Data (2)'!AH3+'Data (2)'!AH8)),"",'Data (2)'!AH3/('Data (2)'!AH3+'Data (2)'!AH8)) -> 0.2220689415 | AI53: =IF(ISERROR(#REF!/(#REF!+#REF!)),"",#REF!/(#REF!+#REF!)) -> 
A54: Retail Market Share (average) | C54: 0.2087730451 | D54: =D16/(D16+D17) -> 0.1787160836 | E54: =E16/(E16+E17) -> 0.1599940052 | G54: =G16/(G16+G17) -> 0.2062819984 | H54: =H16/(H16+H17) -> 0.176247535 | I54: =I16/(I16+I17) -> 0.1711864978 | J54: =J16/(J16+J17) -> 0.1621763146 | L54: =IF(ISERROR(L16/(L16+L17)),"",L16/(L16+L17)) -> 0.1573521915 | M54: =IF(ISERROR(M16/(M16+M17)),"",M16/(M16+M17)) -> 0.1523783282 | N54: =IF(ISERROR(N16/(N16+N17)),"",N16/(N16+N17)) -> 0.1640723992 | O54: =IF(ISERROR(O16/(O16+O17)),"",O16/(O16+O17)) -> 0.1655883958 | Q54: =IF(ISERROR(Q16/(Q16+Q17)),"",Q16/(Q16+Q17)) -> 0.1637804992 | R54: =IF(ISERROR(R16/(R16+R17)),"",R16/(R16+R17)) -> 0.151611015 | S54: =IF(ISERROR(S16/(S16+S17)),"",S16/(S16+S17)) -> 0.1503537967 | T54: =IF(ISERROR(T16/(T16+T17)),"",T16/(T16+T17)) ->  | V54: =V16/(V16+V17) -> 0.2062819984 | W54: =W16/(W16+W17) -> 0.1914606521 | X54: =X16/(X16+X17) -> 0.1844330851 | Y54: =Y16/(Y16+Y17) -> 0.1787160836 | AA54: =IF(ISERROR(AA16/(AA16+AA17)),"",AA16/(AA16+AA17)) -> 0.1573521915 | AB54: =IF(ISERROR(AB16/(AB16+AB17)),"",AB16/(AB16+AB17)) -> 0.154924182 | AC54: =IF(ISERROR(AC16/(AC16+AC17)),"",AC16/(AC16+AC17)) -> 0.1580618251 | AD54: =IF(ISERROR(AD16/(AD16+AD17)),"",AD16/(AD16+AD17)) -> 0.1599940052 | AF54: =IF(ISERROR(AF16/(AF16+AF17)),"",AF16/(AF16+AF17)) -> 0.1637804992 | AG54: =IF(ISERROR(AG16/(AG16+AG17)),"",AG16/(AG16+AG17)) -> 0.1578443376 | AH54: =IF(ISERROR(AH16/(AH16+AH17)),"",AH16/(AH16+AH17)) -> 0.1552639095 | AI54: =IF(ISERROR(AI16/(AI16+AI17)),"",AI16/(AI16+AI17)) -> 
G58: =Data!$G$1 -> 2023 | L58: =Data!$L$1 -> 2024 | Q58: =Data!$Q$1 -> 2025 | V58: =Data!$G$1 -> 2023 | AA58: =Data!$L$1 -> 2024 | AF58: =Data!$Q$1 -> 2025
A59: Other Operational KPIs | C59: 2022 | D59: 2023 | E59: 2024 | G59: Q1 | H59: Q2 | I59: Q3 | J59: Q4 | L59: Q1 | M59: Q2 | N59: Q3 | O59: Q4 | Q59: Q1 | R59: Q2 | S59: Q3 | T59: Q4 | V59: Q1 | W59: H1 | X59: 9M | Y59: FY | AA59: Q1 | AB59: H1 | AC59: 9M | AD59: FY | AF59: Q1 | AG59: H1 | AH59: 9M | AI59: FY
A61: RES capacity | C61: 3.48 GW | D61: 4.6 GW | E61: 5.5 GW | H61: 3.5 GW | I61: 3.8 GW | J61: 4.6 GW | L61: 4.7 GW | M61: 4.7 GW | N61: 4.9 GW | O61: 5.5 GW | Q61: 6.2 GW | X61: 3.8 GW | Y61: 4.6 GW | AA61: 4.7 GW | AB61: 4.7 GW | AC61: 4.9 GW | AD61: 5.5 GW | AF61: 6.2 GW | AG61: 6.4 GW | AH61: 6.4 GW
A62: RES capacity on total (%) | C62: 32.9% | D62: 0.427 | E62: 0.471 | H62: 33.2% | I62: 35.8 % | J62: 42.7% | L62: 43.1% | M62: 40.8 % | N62: 41.8% | O62: 47.1% | Q62: 0.5 | X62: 0.37 | Y62: 0.427 | AA62: 0.431 | AB62: 40.8% | AC62: 0.418 | AD62: 0.471 | AF62: 0.5 | AG62: 0.5 | AH62: 0.5102215061
A63: RES production | C63: 4,491 GWh | D63: 6.1TWh | E63: 6.2TWh | L63: 1.6 TWh | M63: 1.5 TWh | N63: 1.7 TWh | O63: 1.4 TWh | Q63: 1.5 TWh | X63: 3,358 GWh | Y63: 6.1TWh | AA63: 1.6 TWh | AB63: 3.1TWh | AC63: 4.8 GWh | AD63: 6.2TWh | AF63: 1.5 TWh | AG63: 3.1 ΤWh | AH63: 5.1 ΤWh
A64: RES production on total (%) | C64: 19.9% | D64: 0.297 | E64: 0.295 | L64: 0.337 | M64: 0.325 | N64: 0.275 | O64: 0.255 | Q64: 0.271 | X64: 0.236 | Y64: 0.297 | AA64: 0.337 | AB64: 33.1% | AC64: 0.308 | AD64: 0.295 | AF64: 0.271 | AG64: 0.32 | AH64: 0.3315241926
A65: CO2 emissions intensity (Scope 1) | C65: 0.66 tCO2/MWh | D65: 0.50 tCO2/MWh | E65: 0.49 tCO2/MWh | L65: 0.5 tCO2/MWh | M65: tCO2/MWh | N65: tCO2/MWh | O65: tCO2/MWh | Q65: 0.55 tCO2/MWh | X65: 0.53 tCO2/MWh | Y65: 0.50 tCO2/MWh | AA65: 0.5 tCO2/MWh | AB65: 0.5 tCO2/MWh | AC65: 0.48 tCO2/MWh | AD65: 0.49 tCO2/MWh | AF65: 0.55 tCO2/MWh | AG65: 0.49 tCO2/MWh | AH65: 0.47 tCO2/MWh
A66: CO2 emissions (Scope 1) | C66: 14.8 MtCO2 | D66: 9.7 MtCO2 | E66: 10.3 MtCO2 | L66: 2.3 MtCO2 | M66: MtCO2 | N66: MtCO2 | O66: MtCO2 | Q66: 3.1 MtCO2 | X66: 7.6 MtCO2 | Y66: 9.7 MtCO2 | AA66: 2.3 MtCO2 | AB66: 4.4MtCO2 | AC66: 7.5 MtCO2 | AD66: 10.3 MtCO2 | AF66: 3.1 MtCO2 | AG66: 4.8 MtCO2 | AH66: 7.2 MtCO2
A68: SAIDI (Greece/Romania) | C68: 138/91 mins | D68: 134/89 mins | E68: 132/82 mins | L68: 26/19 mins | M68: mins | N68: mins | O68: mins | Q68: 21/19 mins | X68: 106/66 mins | Y68: 134/89 mins | AA68: 26/19 mins | AB68: 59/38 mins | AC68: 109/60 mins | AD68: 132/82 mins | AF68: 21/19 mins | AG68: 58/36 mins | AH68: 72/56 mins
A69: SAIFI (Greece/Romania) | C69: 1.8/2.6 | D69: 1.8/2.5 | E69: 1.7/2.3 | L69: 0.3/0.6 | Q69: 0.3/0.5 | X69: 1.5/1.9 | Y69: 1.8/2.5 | AA69: 0.3/0.6 | AB69: 0.8/1.2 | AC69: 1.4/1.8 | AD69: 1.7/2.3 | AF69: 0.3/0.5 | AG69: 0.72/0.96 | AH69: 0.96/1.45
A70: Total network length | C70: 377 k km | D70: 380 k km | E70: 386 k km | L70: 383 k km | M70: k km | N70: k km | O70: k km | Q70: 388 k km | X70: 247/133 k km | Y70: 380 k km | AA70: 383 k km | AB70: 383 k km | AC70: 385 k km | AD70: 386 k km | AF70: 388 k km | AG70: 388 k km | AH70: 389 k km
A72: Online penetration/myPPC app (Greece) | C72: 25.6% | D72: 0.29 | E72: 0.3 | L72: 0.299 | M72: % | N72: % | O72: % | Q72: 0.32 | X72: 0.278 | Y72: 0.29 | AA72: 0.299 | AB72: 30.7% | AC72: 0.317 | AD72: 0.3 | AF72: 0.32 | AG72: 33.5% | AH72: 0.349
A73: Online penetration/myPPC app (Romania) | C73: 0.4 | D73: 0.59 | E73: 0.62 | L73: 0.6 | M73: % | N73: % | O73: % | Q73: 0.64 | X73: 0.582 | Y73: 0.59 | AA73: 0.6 | AB73: 0.61 | AC73: 0.61 | AD73: 0.62 | AF73: 0.64 | AG73: 0.64 | AH73: 0.65
A74: Charging points installed (Greece & Romania) | C74: 1360 | D74: 2401 | E74: 3087 | L74: 2490 | Q74: 3267 | X74: 1731 | Y74: 2401 | AA74: 2490 | AB74: 2696 | AC74: 2925 | AD74: 3087 | AF74: 3267 | AG74: 3509 | AH74: 3752
G77: =Data!$G$1 -> 2023 | L77: =Data!$L$1 -> 2024 | Q77: =Data!$Q$1 -> 2025 | V77: =Data!$G$1 -> 2023 | AA77: =Data!$L$1 -> 2024 | AF77: =Data!$Q$1 -> 2025
A78: Investments (in m) | C78: 2022 | D78: 2023 | E78: 2024 | G78: Q1 | H78: Q2 | I78: Q3 | J78: Q4 | L78: Q1 | M78: Q2 | N78: Q3 | O78: Q4 | Q78: Q1 | R78: Q2 | S78: Q3 | T78: Q4 | V78: Q1 | W78: H1 | X78: 9M | Y78: FY | AA78: Q1 | AB78: H1 | AC78: 9M | AD78: FY | AF78: Q1 | AG78: H1 | AH78: 9M | AI78: FY
A80: Renewables | D80: 843 | E80: 1289 | L80: 191.631 | M80: =AB80-L80 -> 88.68742386 | N80: =AC80-AB80 -> 64.20757614 | O80: =AD80-AC80 -> 944.474 | Q80: 104.046 | R80: =AG80-AF80 -> 332.195 | S80: =AH80-AG80 -> 221.059 | V80: =IF(G80>0,SUM($G80:G80),"") ->  | W80: =IF(H80>0,SUM($G80:H80),"") ->  | X80: =IF(I80>0,SUM($G80:I80),"") ->  | Y80: =IF(J80>0,SUM($G80:J80),"") ->  | AA80: =IF(L80="","",SUM($L80:L80)) -> 191.631 | AB80: 280.3184239 | AC80: 344.526 | AD80: 1289 | AF80: =IF(Q80="","",SUM($Q80:Q80)) -> 104.046 | AG80: 436.241 | AH80: 657.3 | AI80: =IF(T80="","",SUM($Q80:T80)) ->  | AK80: 659.7373972
A81: Distribution | D81: 1342 | E81: 1042.643 | L81: 228.094 | M81: =AB81-L81 -> 236.231 | N81: =AC81-AB81 -> 256.755 | O81: =AD81-AC81 -> 321.563 | Q81: 282.265 | R81: =AG81-AF81 -> 299.492 | S81: =AH81-AG81 -> 235.943 | V81: =IF(G81>0,SUM($G81:G81),"") ->  | W81: =IF(H81>0,SUM($G81:H81),"") ->  | X81: =IF(I81>0,SUM($G81:I81),"") ->  | Y81: =IF(J81>0,SUM($G81:J81),"") ->  | AA81: =IF(L81="","",SUM($L81:L81)) -> 228.094 | AB81: 464.325 | AC81: 721.08 | AD81: 1042.643 | AF81: =IF(Q81="","",SUM($Q81:Q81)) -> 282.265 | AG81: 581.757 | AH81: 817.7 | AI81: =IF(T81="","",SUM($Q81:T81)) ->  | AK81: 817.7316359
A82: Flexible Generation | D82: 298.928 | E82: 245.713 | L82: 53.643 | M82: 12.429 | N82: 116.162 | O82: 63.479 | Q82: 35.394 | R82: 110.862 | S82: 63.444 | V82: =IF(G82>0,SUM($G82:G82),"") ->  | W82: =IF(H82>0,SUM($G82:H82),"") ->  | X82: =IF(I82>0,SUM($G82:I82),"") ->  | Y82: =IF(J82>0,SUM($G82:J82),"") ->  | AA82: =IF(L82="","",SUM($L82:L82)) -> 53.643 | AB82: 66.072 | AC82: 182.234 | AD82: 245.713 | AF82: =IF(Q82="","",SUM($Q82:Q82)) -> 35.394 | AG82: 146.256 | AH82: 209.7 | AI82: =IF(T82="","",SUM($Q82:T82)) ->  | AK82: 203.6748594
A83: Telecom | D83: 25.803 | E83: 92.822 | L83: 10.807 | M83: 20.625 | N83: 14.905 | O83: 46.485 | Q83: 18.441 | R83: 27.634 | S83: 34.625 | V83: =IF(G83>0,SUM($G83:G83),"") ->  | W83: =IF(H83>0,SUM($G83:H83),"") ->  | X83: =IF(I83>0,SUM($G83:I83),"") ->  | Y83: =IF(J83>0,SUM($G83:J83),"") ->  | AA83: =IF(L83="","",SUM($L83:L83)) -> 10.807 | AB83: 31.432 | AC83: 46.337 | AD83: 92.822 | AF83: =IF(Q83="","",SUM($Q83:Q83)) -> 18.441 | AG83: 46.075 | AH83: 80.7 | AI83: =IF(T83="","",SUM($Q83:T83)) ->  | AK83: 80.74304387
A84: Digitalization/Efficiency | D84: 32.216 | E84: 66.721 | L84: 6.129 | M84: 12.742 | N84: 14.093 | O84: 33.757 | Q84: 18.084 | R84: 29.29 | S84: 40.526 | V84: =IF(G84>0,SUM($G84:G84),"") ->  | W84: =IF(H84>0,SUM($G84:H84),"") ->  | X84: =IF(I84>0,SUM($G84:I84),"") ->  | Y84: =IF(J84>0,SUM($G84:J84),"") ->  | AA84: =IF(L84="","",SUM($L84:L84)) -> 6.129 | AB84: 18.871 | AC84: 32.964 | AD84: 66.721 | AF84: =IF(Q84="","",SUM($Q84:Q84)) -> 18.084 | AG84: 47.374 | AH84: 87.9 | AI84: =IF(T84="","",SUM($Q84:T84)) ->  | AK84: 87.91217632
A85: Retail/E-mobility/Other | D85: 48 | E85: 311 | L85: 10.425 | M85: 250.15 | N85: 19.421 | O85: 31.004 | Q85: 18.155 | R85: 24.911 | S85: 20.534 | V85: =IF(G85>0,SUM($G85:G85),"") ->  | W85: =IF(H85>0,SUM($G85:H85),"") ->  | X85: =IF(I85>0,SUM($G85:I85),"") ->  | Y85: =IF(J85>0,SUM($G85:J85),"") ->  | AA85: =IF(L85="","",SUM($L85:L85)) -> 10.425 | AB85: 260.575 | AC85: 279.996 | AD85: 311 | AF85: =IF(Q85="","",SUM($Q85:Q85)) -> 18.155 | AG85: 43.066 | AH85: 63.6 | AI85: =IF(T85="","",SUM($Q85:T85)) ->  | AK85: 67.17951688

Sheet Demand (IPTO) (hidden)
A1: IPTO | B1: Jan | C1: Feb | D1: Mar | E1: Apr | F1: May | G1: Jun | H1: Jul | I1: Aug | J1: Sep | K1: Oct | L1: Nov | M1: Dec | O1: Q1 | P1: Q2 | Q1: Q3 | R1: Q4 | S1: FY
A2: 2023 | B2: 4244 | C2: 4097 | D2: 4009 | E2: 3609 | F2: 3662 | G2: 3898 | H2: 5530 | I2: 4951 | J2: 3847 | K2: 3679 | L2: 3750 | M2: 4214 | O2: =B2+C2+D2 -> 12350 | P2: =E2+F2+G2 -> 11169 | Q2: =H2+I2+J2 -> 14328 | R2: =K2+L2+M2 -> 11643 | S2: =SUM(B2:M2) -> 49490
A3: 2024 | B3: 4536 | C3: 4011 | D3: 3911 | E3: 3555 | F3: 3660 | G3: 4900.5 | H3: 5803 | I3: 5170 | J3: 4089 | K3: 3837 | L3: 3989 | M3: 4351 | O3: =B3+C3+D3 -> 12458 | P3: =E3+F3+G3 -> 12115.5 | Q3: =H3+I3+J3 -> 15062 | R3: =K3+L3+M3 -> 12177 | S3: =SUM(B3:M3) -> 51812.5
A4: 2025 2 | B4: 4443.58 | C4: 4274.44 | D4: 4034.36 | E4: 3687.16 | F4: 3725.1 | G4: 4562.77 | H4: 5714.47 | I4: 4768.2 | J4: 4184.37 | O4: =B4+C4+D4 -> 12752.38 | P4: =E4+F4+G4 -> 11975.03 | Q4: =H4+I4+J4 -> 14667.04 | R4: =K4+L4+M4 -> 0 | S4: =SUM(B4:M4) -> 39394.45
A7: IPTO (excluding pumping)1 | B7: Jan | C7: Feb | D7: Mar | E7: Apr | F7: May | G7: Jun | H7: Jul | I7: Aug | J7: Sep | K7: Oct | L7: Nov | M7: Dec | O7: Q1 | P7: Q2 | Q7: Q3 | R7: Q4 | S7: FY
A8: 2023 | B8: 4212 | C8: 4079 | D8: 3974 | E8: 3576 | F8: 3624 | G8: 3876 | H8: 5519 | I8: 4938 | J8: 3824 | K8: 3663 | L8: 3707 | M8: 4173 | O8: =B8+C8+D8 -> 12265 | P8: =E8+F8+G8 -> 11076 | Q8: =H8+I8+J8 -> 14281 | R8: =K8+L8+M8 -> 11543 | S8: =SUM(B8:M8) -> 49165
A9: 2024 | B9: 4484 | C9: 3970 | D9: 3848 | E9: 3485 | F9: 3600 | G9: 4846 | H9: 5759 | I9: 5112 | J9: 4014 | K9: 3753 | L9: 3945 | M9: 4302 | O9: =B9+C9+D9 -> 12302 | P9: =E9+F9+G9 -> 11931 | Q9: =H9+I9+J9 -> 14885 | R9: =K9+L9+M9 -> 12000 | S9: =SUM(B9:M9) -> 51118
A10: 2025 2 | B10: =B4-35.7 -> 4407.88 | C10: =C4-28.32 -> 4246.12 | D10: =D4-94.68 -> 3939.68 | E10: =E4-101.3 -> 3585.86 | F10: =F4-101.43 -> 3623.67 | G10: =G4-90.6 -> 4472.17 | H10: =H4-60.98 -> 5653.49 | I10: =I4-89.88 -> 4678.32 | J10: =J4-80.98 -> 4103.39 | O10: =B10+C10+D10 -> 12593.68 | P10: =E10+F10+G10 -> 11681.7 | Q10: =H10+I10+J10 -> 14435.2 | R10: =K10+L10+M10 -> 0 | S10: =SUM(B10:M10) -> 38710.58
A12: 1. Total Demand is defined as the generation on the mainland and the interconnected islands required to supply the Load (excluding pumping). More specifically, the estimation of Total Demand includes the estimation of System Demand and the estimation of demand covered by production units connected to the Network. Network generation results from certified measurements for the Medium Voltage and measurements and estimations for the Low Voltage. 2. Provisional data for March 2025.

Sheet Dashboard

Sheet Demand
H1: =Data!V1 -> 2023 | M1: =Data!$L$1 -> 2024 | R1: =Data!$Q$1 -> 2025 | W1: YoY Change
B2: Greece (in GWh) | D2: 2022 | E2: 2023 | F2: 2024 | H2: =IF(Data!$A$1=TRUE,Data!G2,Data!V2) -> Q1 | I2: =IF(Data!$A$1=TRUE,Data!H2,Data!W2) -> H1 | J2: =IF(Data!$A$1=TRUE,Data!I2,Data!X2) -> 9M | K2: =IF(Data!$A$1=TRUE,Data!J2,Data!Y2) -> FY | M2: =IF(Data!$A$1=TRUE,Data!G2,Data!V2) -> Q1 | N2: =IF(Data!$A$1=TRUE,Data!H2,Data!W2) -> H1 | O2: =IF(Data!$A$1=TRUE,Data!I2,Data!X2) -> 9M | P2: =IF(Data!$A$1=TRUE,Data!J2,Data!Y2) -> FY | R2: =IF(Data!$A$1=TRUE,Data!L2,Data!AA2) -> Q1 | S2: =IF(Data!$A$1=TRUE,Data!M2,Data!AB2) -> H1 | T2: =IF(Data!$A$1=TRUE,Data!N2,Data!AC2) -> 9M | U2: =IF(Data!$A$1=TRUE,Data!O2,Data!AD2) -> FY | W2: =M2 -> Q1 | X2: =N2 -> H1 | Y2: =O2 -> 9M | Z2: =P2 -> FY
B4: PPC sales | D4: =Data!C4 -> 29882 | E4: =Data!D4 -> 26044.66 | F4: =Data!E4 -> 24792.4 | H4: =IF(Data!$A$1=TRUE,Data!G4,Data!V4) -> 6865.45 | I4: =IF(Data!$A$1=TRUE,Data!H4,Data!W4) -> 12554.31 | J4: =IF(Data!$A$1=TRUE,Data!I4,Data!X4) -> 20034.85 | K4: =IF(Data!$A$1=TRUE,Data!J4,Data!Y4) -> 26044.66 | M4: =IF(Data!$A$1=TRUE,Data!L4,Data!AA4) -> 5768.37 | N4: =IF(Data!$A$1=TRUE,Data!M4,Data!AB4) -> 11555.33 | O4: =IF(Data!$A$1=TRUE,Data!N4,Data!AC4) -> 18725.31 | P4: =IF(Data!$A$1=TRUE,Data!O4,Data!AD4) -> 24792.4 | R4: =IF(Data!$A$1=TRUE,IF(Data!Q4="","",Data!Q4),Data!AF4) -> 5887.99 | S4: =IF(Data!$A$1=TRUE,IF(Data!R4="","",Data!R4),Data!AG4) -> 11615.966 | T4: =IF(Data!$A$1=TRUE,IF(Data!S4="","",Data!S4),Data!AH4) -> 18931.75199 | U4: =IF(Data!$A$1=TRUE,IF(Data!T4="","",Data!T4),Data!AI4) ->  | W4: =IF(ISERROR(R4/M4-1),"",R4/M4-1) -> 0.02073722733 | X4: =IF(ISERROR(S4/N4-1),"",S4/N4-1) -> 0.00524744858 | Y4: =IF(ISERROR(T4/O4-1),"",T4/O4-1) -> 0.01102475698 | Z4: =IF(ISERROR(U4/P4-1),"",U4/P4-1) -> 
B7: Domestic Demand (Mainland & NII)1 | D7: =Data!C7 -> 55576 | E7: =Data!D7 -> 54066.73 | F7: =Data!E7 -> 56981.2 | H7: =IF(Data!$A$1=TRUE,Data!G7,Data!V7) -> 13232.42 | I7: =IF(Data!$A$1=TRUE,Data!H7,Data!W7) -> 25524.32 | J7: =IF(Data!$A$1=TRUE,Data!I7,Data!X7) -> 41492.98 | K7: =IF(Data!$A$1=TRUE,Data!J7,Data!Y7) -> 54066.73 | M7: =IF(Data!$A$1=TRUE,Data!L7,Data!AA7) -> 13500.99 | N7: =IF(Data!$A$1=TRUE,Data!M7,Data!AB7) -> 26913.46 | O7: =IF(Data!$A$1=TRUE,Data!N7,Data!AC7) -> 43737.7 | P7: =IF(Data!$A$1=TRUE,Data!O7,Data!AD7) -> 56981.2 | R7: =IF(Data!$A$1=TRUE,IF(Data!Q7="","",Data!Q7),Data!AF7) -> 13761.139 | S7: =IF(Data!$A$1=TRUE,IF(Data!R7="","",Data!R7),Data!AG7) -> 26798.139 | T7: =IF(Data!$A$1=TRUE,IF(Data!S7="","",Data!S7),Data!AH7) -> 43399.96163 | U7: =IF(Data!$A$1=TRUE,IF(Data!T7="","",Data!T7),Data!AI7) ->  | W7: =IF(ISERROR(R7/M7-1),"",R7/M7-1) -> 0.01926888324 | X7: -0.004284881988 | Y7: -0.007721905241
B8: Total Demand (Mainland)2 | D8: =Data!C8 -> 50688 | E8: =Data!D8 -> 49490 | F8: =Data!E8 -> 51812.5 | H8: =IF(Data!$A$1=TRUE,Data!G8,Data!V8) -> 12350 | I8: =IF(Data!$A$1=TRUE,Data!H8,Data!W8) -> 23519 | J8: =IF(Data!$A$1=TRUE,Data!I8,Data!X8) -> 37847 | K8: =IF(Data!$A$1=TRUE,Data!J8,Data!Y8) -> 49490 | M8: =IF(Data!$A$1=TRUE,Data!L8,Data!AA8) -> 12458 | N8: =IF(Data!$A$1=TRUE,Data!M8,Data!AB8) -> 24573.5 | O8: =IF(Data!$A$1=TRUE,Data!N8,Data!AC8) -> 39635.5 | P8: =IF(Data!$A$1=TRUE,Data!O8,Data!AD8) -> 51812.5 | R8: =IF(Data!$A$1=TRUE,IF(Data!Q8="","",Data!Q8),Data!AF8) -> 12752 | S8: =IF(Data!$A$1=TRUE,IF(Data!R8="","",Data!R8),Data!AG8) -> 24727 | T8: =IF(Data!$A$1=TRUE,IF(Data!S8="","",Data!S8),Data!AH8) -> 39394 | U8: =IF(Data!$A$1=TRUE,IF(Data!T8="","",Data!T8),Data!AI8) ->  | W8: 0.02359929363 | X8: 0.006246566423 | Y8: -0.006093022669
B10: 1. Source: Company data. Domestic Demand is Total Demand minus exports. 2. Source: IPTO. Based on provisional data for Q3 2025 and 9M 2025.
W11: YoY Change
B12: Romania (in GWh) | D12: 2022 | E12: 2023 | F12: 2024 | H12: =IF(Data!$A$1=TRUE,Data!G2,Data!V2) -> Q1 | I12: =IF(Data!$A$1=TRUE,Data!H2,Data!W2) -> H1 | J12: =IF(Data!$A$1=TRUE,Data!I2,Data!X2) -> 9M | K12: =IF(Data!$A$1=TRUE,Data!J2,Data!Y2) -> FY | M12: =IF(Data!$A$1=TRUE,Data!G2,Data!V2) -> Q1 | N12: =IF(Data!$A$1=TRUE,Data!H2,Data!W2) -> H1 | O12: =IF(Data!$A$1=TRUE,Data!I2,Data!X2) -> 9M | P12: =IF(Data!$A$1=TRUE,Data!J2,Data!Y2) -> FY | R12: =IF(Data!$A$1=TRUE,Data!L2,Data!AA2) -> Q1 | S12: =IF(Data!$A$1=TRUE,Data!M2,Data!AB2) -> H1 | T12: =IF(Data!$A$1=TRUE,Data!N2,Data!AC2) -> 9M | U12: =IF(Data!$A$1=TRUE,Data!O2,Data!AD2) -> FY | W12: =M2 -> Q1 | X12: =N2 -> H1 | Y12: =O2 -> 9M | Z12: =P2 -> FY
B14: PPC Romania sales | D14: =Data!C16 -> 9852 | E14: =Data!D16 -> 8237.9 | F14: =Data!E16 -> 7696.99 | H14: =IF(Data!$A$1=TRUE,Data!G16,Data!V16) -> 2338.52 | I14: =IF(Data!$A$1=TRUE,Data!H16,Data!W16) -> 4285.1 | J14: =IF(Data!$A$1=TRUE,Data!I16,Data!X16) -> 6317.7 | K14: =IF(Data!$A$1=TRUE,Data!J16,Data!Y16) -> 8237.9 | M14: =IF(Data!$A$1=TRUE,Data!L16,Data!AA16) -> 1892.19 | N14: =IF(Data!$A$1=TRUE,Data!M16,Data!AB16) -> 3639.75 | O14: =IF(Data!$A$1=TRUE,Data!N16,Data!AC16) -> 5651.97 | P14: =IF(Data!$A$1=TRUE,Data!O16,Data!AD16) -> 7696.99 | R14: =IF(Data!$A$1=TRUE,IF(Data!Q16="","",Data!Q16),Data!AF16) -> 1991.45 | S14: =IF(Data!$A$1=TRUE,IF(Data!R16="","",Data!R16),Data!AG16) -> 3747.044 | T14: =IF(Data!$A$1=TRUE,IF(Data!S16="","",Data!S16),Data!AH16) -> 5622.791978 | W14: =IF(ISERROR(R14/M14-1),"",R14/M14-1) -> 0.05245773416 | X14: =IF(ISERROR(S14/N14-1),"",S14/N14-1) -> 0.02947839824 | Y14: =IF(ISERROR(T14/O14-1),"",T14/O14-1) -> -0.005162451659 | Z14: =IF(ISERROR(U14/P14-1),"",U14/P14-1) -> -1
B16: Demand3 | D16: =Data!C19 -> 53726.82888 | E16: =Data!D19 -> 51052.46 | F16: =Data!E19 -> 53330.34 | H16: =IF(Data!$A$1=TRUE,Data!G19,Data!V19) -> 13327.63 | I16: =IF(Data!$A$1=TRUE,Data!H19,Data!W19) -> 25316.68 | J16: =IF(Data!$A$1=TRUE,Data!I19,Data!X19) -> 37841.56 | K16: =IF(Data!$A$1=TRUE,Data!J19,Data!Y19) -> 51052.46 | M16: =IF(Data!$A$1=TRUE,Data!L19,Data!AA19) -> 13740.46 | N16: =IF(Data!$A$1=TRUE,Data!M19,Data!AB19) -> 26149.74 | O16: =IF(Data!$A$1=TRUE,Data!N19,Data!AC19) -> 39334.34 | P16: =IF(Data!$A$1=TRUE,Data!O19,Data!AD19) -> 53330.34 | R16: =IF(Data!$A$1=TRUE,IF(Data!Q19="","",Data!Q19),Data!AF19) -> 13919.385 | S16: =IF(Data!$A$1=TRUE,IF(Data!R19="","",Data!R19),Data!AG19) -> 26384.385 | T16: =IF(Data!$A$1=TRUE,IF(Data!S19="","",Data!S19),Data!AH19) -> 39164.61393 | W16: =IF(ISERROR(R16/M16-1),"",R16/M16-1) -> 0.01302176201 | X16: =IF(ISERROR(S16/N16-1),"",S16/N16-1) -> 0.00897312937 | Y16: =IF(ISERROR(T16/O16-1),"",T16/O16-1) -> -0.004314959197 | Z16: =IF(ISERROR(U16/P16-1),"",U16/P16-1) -> -1
B18: 3. Source: Transelectrica. Based on provisional data for Q3 2025 and 9M 2025. 4. Revised based on the updated figures of Transelectrica

Sheet Generation
H1: =Data!$G$1 -> 2023 | M1: =Data!$L$1 -> 2024 | R1: =Data!$Q$1 -> 2025 | W1: YoY Change
B2: Greece (in GWh) | D2: 2022 | E2: 2023 | F2: 2024 | H2: =IF(Data!$A$1=TRUE,Data!G24,Data!V24) -> Q1 | I2: =IF(Data!$A$1=TRUE,Data!H24,Data!W24) -> H1 | J2: =IF(Data!$A$1=TRUE,Data!I24,Data!X24) -> 9M | K2: =IF(Data!$A$1=TRUE,Data!J24,Data!Y24) -> FY | M2: =IF(Data!$A$1=TRUE,Data!G24,Data!V24) -> Q1 | N2: =IF(Data!$A$1=TRUE,Data!H24,Data!W24) -> H1 | O2: =IF(Data!$A$1=TRUE,Data!I24,Data!X24) -> 9M | P2: =IF(Data!$A$1=TRUE,Data!J24,Data!Y24) -> FY | R2: =IF(Data!$A$1=TRUE,IF(Data!L24="","",Data!L24),Data!AA24) -> Q1 | S2: =IF(Data!$A$1=TRUE,IF(Data!M24="","",Data!M24),Data!AB24) -> H1 | T2: =IF(Data!$A$1=TRUE,IF(Data!N24="","",Data!N24),Data!AC24) -> 9M | U2: =IF(Data!$A$1=TRUE,IF(Data!O24="","",Data!O24),Data!AD24) -> FY | W2: =M2 -> Q1 | X2: =N2 -> H1 | Y2: =O2 -> 9M | Z2: =P2 -> FY
B4: PPC Generation | D4: =SUM(D5:D8) -> 22602 | E4: =SUM(E5:E8) -> 19279.73 | F4: =SUM(F5:F8) -> 19614.56 | H4: =SUM(H5:H8) -> 4286.24 | I4: 8148.11 | J4: 14217.28 | K4: 19279.73 | M4: =SUM(M5:M8) -> 4244.22 | N4: =SUM(N5:N8) -> 8690.86 | O4: =SUM(O5:O8) -> 14750.57 | P4: =SUM(P5:P8) -> 19614.56 | R4: =IF(SUM(R5:R8)=0,"",SUM(R5:R8)) -> 4991.361 | S4: =IF(SUM(S5:S8)=0,"",SUM(S5:S8)) -> 8733.3 | T4: =IF(SUM(T5:T8)=0,"",SUM(T5:T8)) -> 13741.852 | U4: =IF(SUM(U5:U8)=0,"",SUM(U5:U8)) ->  | W4: =IF(ISERROR(R4/M4-1),"",R4/M4-1) -> 0.1760372931 | X4: =IF(ISERROR(S4/N4-1),"",S4/N4-1) -> 0.004883291182 | Y4: =IF(ISERROR(T4/O4-1),"",T4/O4-1) -> -0.06838501834 | Z4: =IF(ISERROR(U4/P4-1),"",U4/P4-1) -> 
B5: Lignite | D5: =Data!C27 -> 5460 | E5: =Data!D27 -> 4513.21 | F5: =Data!E27 -> 3236.31 | H5: =IF(Data!$A$1=TRUE,Data!G27,Data!V27) -> 1445.47 | I5: =IF(Data!$A$1=TRUE,Data!H27,Data!W27) -> 2138.86 | J5: =IF(Data!$A$1=TRUE,Data!I27,Data!X27) -> 3288.82 | K5: =IF(Data!$A$1=TRUE,Data!J27,Data!Y27) -> 4513.21 | M5: =IF(Data!$A$1=TRUE,Data!L27,Data!AA27) -> 1050.23 | N5: =IF(Data!$A$1=TRUE,Data!M27,Data!AB27) -> 1498.37 | O5: =IF(Data!$A$1=TRUE,Data!N27,Data!AC27) -> 2324.54 | P5: =IF(Data!$A$1=TRUE,Data!O27,Data!AD27) -> 3236.31 | R5: =IF(Data!$A$1=TRUE,IF(Data!Q27="","",Data!Q27),Data!AF27) -> 1127.21 | S5: =IF(Data!$A$1=TRUE,IF(Data!R27="","",Data!R27),Data!AG27) -> 1412.555 | T5: =IF(Data!$A$1=TRUE,IF(Data!S27="","",Data!S27),Data!AH27) -> 1916.457 | U5: =IF(Data!$A$1=TRUE,IF(Data!T27="","",Data!T27),Data!AI27) ->  | W5: =IF(ISERROR(R5/M5-1),"",R5/M5-1) -> 0.07329822991 | X5: =IF(ISERROR(S5/N5-1),"",S5/N5-1) -> -0.05727223583 | Y5: =IF(ISERROR(T5/O5-1),"",T5/O5-1) -> -0.1755543032 | Z5: =IF(ISERROR(U5/P5-1),"",U5/P5-1) -> 
B6: Gas | D6: =Data!C28 -> 8678 | E6: =Data!D28 -> 6284.39 | F6: =Data!E28 -> 7711.4 | H6: =IF(Data!$A$1=TRUE,Data!G28,Data!V28) -> 1179.57 | I6: =IF(Data!$A$1=TRUE,Data!H28,Data!W28) -> 2596.92 | J6: =IF(Data!$A$1=TRUE,Data!I28,Data!X28) -> 4645.39 | K6: =IF(Data!$A$1=TRUE,Data!J28,Data!Y28) -> 6284.39 | M6: =IF(Data!$A$1=TRUE,Data!L28,Data!AA28) -> 1330.39 | N6: =IF(Data!$A$1=TRUE,Data!M28,Data!AB28) -> 3105.11 | O6: =IF(Data!$A$1=TRUE,Data!N28,Data!AC28) -> 5402.62 | P6: =IF(Data!$A$1=TRUE,Data!O28,Data!AD28) -> 7711.4 | R6: =IF(Data!$A$1=TRUE,IF(Data!Q28="","",Data!Q28),Data!AF28) -> 2253.07 | S6: =IF(Data!$A$1=TRUE,IF(Data!R28="","",Data!R28),Data!AG28) -> 3679.089 | T6: =IF(Data!$A$1=TRUE,IF(Data!S28="","",Data!S28),Data!AH28) -> 5364.133 | U6: =IF(Data!$A$1=TRUE,IF(Data!T28="","",Data!T28),Data!AI28) ->  | W6: 0.6935409917 | X6: 0.1848498121 | Y6: -0.007123765877
B7: Oil | D7: =Data!C29 -> 3973 | E7: =Data!D29 -> 3685.01 | F7: =Data!E29 -> 3870.43 | H7: =IF(Data!$A$1=TRUE,Data!G29,Data!V29) -> 680.37 | I7: =IF(Data!$A$1=TRUE,Data!H29,Data!W29) -> 1529.7 | J7: =IF(Data!$A$1=TRUE,Data!I29,Data!X29) -> 2925.1 | K7: =IF(Data!$A$1=TRUE,Data!J29,Data!Y29) -> 3685.01 | M7: =IF(Data!$A$1=TRUE,Data!L29,Data!AA29) -> 678.85 | N7: =IF(Data!$A$1=TRUE,Data!M29,Data!AB29) -> 1658.61 | O7: =IF(Data!$A$1=TRUE,Data!N29,Data!AC29) -> 3092.62 | P7: =IF(Data!$A$1=TRUE,Data!O29,Data!AD29) -> 3870.43 | R7: =IF(Data!$A$1=TRUE,IF(Data!Q29="","",Data!Q29),Data!AF29) -> 681.07 | S7: =IF(Data!$A$1=TRUE,IF(Data!R29="","",Data!R29),Data!AG29) -> 1573.825 | T7: =IF(Data!$A$1=TRUE,IF(Data!S29="","",Data!S29),Data!AH29) -> 2943.581 | U7: =IF(Data!$A$1=TRUE,IF(Data!T29="","",Data!T29),Data!AI29) ->  | W7: 0.003270236429 | X7: -0.05111810492 | Y7: -0.04819182441
B8: RES (incl. Large Hydro) | D8: =Data!C30 -> 4491 | E8: =Data!D30 -> 4797.12 | F8: =Data!E30 -> 4796.42 | H8: =IF(Data!$A$1=TRUE,Data!G30,Data!V30) -> 980.83 | I8: =IF(Data!$A$1=TRUE,Data!H30,Data!W30) -> 1882.63 | J8: =IF(Data!$A$1=TRUE,Data!I30,Data!X30) -> 3357.97 | K8: =IF(Data!$A$1=TRUE,Data!J30,Data!Y30) -> 4797.12 | M8: =IF(Data!$A$1=TRUE,Data!L30,Data!AA30) -> 1184.75 | N8: =IF(Data!$A$1=TRUE,Data!M30,Data!AB30) -> 2428.77 | O8: =IF(Data!$A$1=TRUE,Data!N30,Data!AC30) -> 3930.79 | P8: =IF(Data!$A$1=TRUE,Data!O30,Data!AD30) -> 4796.42 | R8: =IF(Data!$A$1=TRUE,IF(Data!Q30="","",Data!Q30),Data!AF30) -> 930.011 | S8: =IF(Data!$A$1=TRUE,IF(Data!R30="","",Data!R30),Data!AG30) -> 2067.831 | T8: =IF(Data!$A$1=TRUE,IF(Data!S30="","",Data!S30),Data!AH30) -> 3517.681 | U8: =IF(Data!$A$1=TRUE,IF(Data!T30="","",Data!T30),Data!AI30) ->  | W8: -0.2150149821 | X8: -0.1486097901 | Y8: -0.1050956678
B11: International (in GWh) | D11: 2022 | E11: 2023 | F11: 2024 | H11: =IF(Data!$A$1=TRUE,Data!G24,Data!V24) -> Q1 | I11: =IF(Data!$A$1=TRUE,Data!H24,Data!W24) -> H1 | J11: =IF(Data!$A$1=TRUE,Data!I24,Data!X24) -> 9M | K11: =IF(Data!$A$1=TRUE,Data!J24,Data!Y24) -> FY | M11: =IF(Data!$A$1=TRUE,Data!G24,Data!V24) -> Q1 | N11: =IF(Data!$A$1=TRUE,Data!H24,Data!W24) -> H1 | O11: =IF(Data!$A$1=TRUE,Data!I24,Data!X24) -> 9M | P11: =IF(Data!$A$1=TRUE,Data!J24,Data!Y24) -> FY | R11: =IF(Data!$A$1=TRUE,IF(Data!L24="","",Data!L24),Data!AA24) -> Q1 | S11: =IF(Data!$A$1=TRUE,IF(Data!M24="","",Data!M24),Data!AB24) -> H1 | T11: =IF(Data!$A$1=TRUE,IF(Data!N24="","",Data!N24),Data!AC24) -> 9M | U11: =IF(Data!$A$1=TRUE,IF(Data!O24="","",Data!O24),Data!AD24) -> FY | W11: =M11 -> Q1 | X11: =N11 -> H1 | Y11: =O11 -> 9M | Z11: =P11 -> FY
B13: PPC Generation | E13: =SUM(E14:E16) -> 1334.62 | F13: =SUM(F14:F16) -> 1394.57 | M13: =SUM(M14:M16) -> 370.6 | N13: 666.03 | O13: 888.62 | P13: 1394.57 | R13: =SUM(R14:R16) -> 582.883 | S13: 1083.177 | T13: 1552.575189 | W13: =IF(ISERROR(R13/M13-1),"",R13/M13-1) -> 0.5728089584 | X13: =IF(ISERROR(S13/N13-1),"",S13/N13-1) -> 0.6263186343 | Y13: =IF(ISERROR(T13/O13-1),"",T13/O13-1) -> 0.7471756086
B14: RES (Wind) | E14: =IF(Data!D38=0,"",Data!D38) -> 1244.59 | F14: =IF(Data!E38=0,"",Data!E38) -> 1271.83 | H14: =IF(Data!$A$1=TRUE,Data!#REF!,Data!#REF!) ->  | I14: =IF(Data!$A$1=TRUE,Data!#REF!,Data!#REF!) ->  | J14: =IF(Data!$A$1=TRUE,Data!#REF!,Data!#REF!) ->  | K14: =IF(Data!$A$1=TRUE,Data!#REF!,Data!#REF!) ->  | M14: =IF(Data!$A$1=TRUE,Data!L38,Data!AA38) -> 348.76 | N14: =IF(Data!$A$1=TRUE,Data!M38,Data!AB38) -> 600.96 | O14: =IF(Data!$A$1=TRUE,Data!N38,Data!AC38) -> 785.21 | P14: =IF(Data!$A$1=TRUE,Data!O38,Data!AD38) -> 1271.83 | R14: =IF(Data!$A$1=TRUE,IF(Data!Q38="","",Data!Q38),Data!AF38) -> 552.962 | S14: =IF(Data!$A$1=TRUE,IF(Data!R38="","",Data!R38),Data!AG38) -> 991.68 | T14: =IF(Data!$A$1=TRUE,IF(Data!S38="","",Data!S38),Data!AH38) -> 1398.448194 | U14: =IF(Data!$A$1=TRUE,IF(Data!#REF!="","",Data!#REF!),Data!#REF!) ->  | W14: =IF(ISERROR(R14/M14-1),"",R14/M14-1) -> 0.5855086592 | X14: =IF(ISERROR(S14/N14-1),"",S14/N14-1) -> 0.6501597444 | Y14: =IF(ISERROR(T14/O14-1),"",T14/O14-1) -> 0.7809862258 | Z14: =IF(ISERROR(U14/P14-1),"",U14/P14-1) -> 
B15: RES (Solar) | D15: =IF(Data!C44=0,"",Data!C44) ->  | E15: =IF(Data!D39=0,"",Data!D39) -> 90.03 | F15: =IF(Data!E39=0,"",Data!E39) -> 119.04 | H15: =IF(Data!$A$1=TRUE,Data!#REF!,Data!#REF!) ->  | I15: =IF(Data!$A$1=TRUE,Data!#REF!,Data!#REF!) ->  | J15: =IF(Data!$A$1=TRUE,Data!#REF!,Data!#REF!) ->  | K15: =IF(Data!$A$1=TRUE,Data!#REF!,Data!#REF!) ->  | M15: =IF(Data!$A$1=TRUE,Data!L39,Data!AA39) -> 21.84 | N15: =IF(Data!$A$1=TRUE,Data!M39,Data!AB39) -> 65.07 | O15: =IF(Data!$A$1=TRUE,Data!N39,Data!AC39) -> 103.41 | P15: =IF(Data!$A$1=TRUE,Data!O39,Data!AD39) -> 119.04 | R15: =IF(Data!$A$1=TRUE,IF(Data!Q39="","",Data!Q39),Data!AF39) -> 24.233 | S15: =IF(Data!$A$1=TRUE,IF(Data!R39="","",Data!R39),Data!AG39) -> 74.385 | T15: =IF(Data!$A$1=TRUE,IF(Data!S39="","",Data!S39),Data!AH39) -> 131.433053 | U15: =IF(Data!$A$1=TRUE,IF(Data!T44="","",Data!T44),Data!AI44) -> 0 | W15: =IF(ISERROR(R15/M15-1),"",R15/M15-1) -> 0.1095695971 | X15: =IF(ISERROR(S15/N15-1),"",S15/N15-1) -> 0.143153527 | Y15: =IF(ISERROR(T15/O15-1),"",T15/O15-1) -> 0.2709897786
B16: RES (Other) | D16: =IF(Data!C45=0,"",Data!C45) -> 0.4344533292 | E16: =IF(Data!D40=0,"",Data!D40) ->  | F16: =IF(Data!E40=0,"",Data!E40) -> 3.7 | H16: =IF(Data!$A$1=TRUE,Data!#REF!,Data!#REF!) ->  | I16: =IF(Data!$A$1=TRUE,Data!#REF!,Data!#REF!) ->  | J16: =IF(Data!$A$1=TRUE,Data!#REF!,Data!#REF!) ->  | K16: =IF(Data!$A$1=TRUE,Data!#REF!,Data!#REF!) ->  | M16: =IF(Data!$A$1=TRUE,Data!L40,Data!AA40) -> 0 | N16: =IF(Data!$A$1=TRUE,Data!M40,Data!AB40) -> 0 | O16: =IF(Data!$A$1=TRUE,Data!N40,Data!AC40) -> 0 | P16: =IF(Data!$A$1=TRUE,Data!O40,Data!AD40) -> 3.7 | R16: =IF(Data!$A$1=TRUE,IF(Data!Q40="","",Data!Q40),Data!AF40) -> 5.688 | S16: =IF(Data!$A$1=TRUE,IF(Data!R40="","",Data!R40),Data!AG40) -> 17.112 | T16: =IF(Data!$A$1=TRUE,IF(Data!S40="","",Data!S40),Data!AH40) -> 22.693942 | U16: =IF(Data!$A$1=TRUE,IF(Data!T45="","",Data!T45),Data!AI45) ->  | W16: =IF(ISERROR(R16/M16-1),"",R16/M16-1) ->  | X16: =IF(ISERROR(S16/N16-1),"",S16/N16-1) ->  | Y16: =IF(ISERROR(T16/O16-1),"",T16/O16-1) -> 
B18: Sources: Company data, IPTO, Transelectrica. Based on provisional data for Q3 2025 and 9M 2025.

Sheet Market Shares
H1: =Data!$G$1 -> 2023 | M1: =Data!$L$1 -> 2024 | R1: =Data!$Q$1 -> 2025
B2: PPC Market Shares (Greece) | D2: 2022 | E2: 2023 | F2: 2024 | H2: =IF(Data!$A$1=TRUE,Data!G43,Data!V43) -> Q1 | I2: =IF(Data!$A$1=TRUE,Data!H43,Data!W43) -> H1 | J2: =IF(Data!$A$1=TRUE,Data!I43,Data!X43) -> 9M | K2: =IF(Data!$A$1=TRUE,Data!J43,Data!Y43) -> FY | M2: =IF(Data!$A$1=TRUE,Data!G43,Data!V43) -> Q1 | N2: =IF(Data!$A$1=TRUE,Data!H43,Data!W43) -> H1 | O2: =IF(Data!$A$1=TRUE,Data!I43,Data!X43) -> 9M | P2: =IF(Data!$A$1=TRUE,Data!J43,Data!Y43) -> FY | R2: =IF(Data!$A$1=TRUE,IF(Data!L43="","",Data!L43),IF(Data!AA43="","",Data!AA43)) -> Q1 | S2: =IF(Data!$A$1=TRUE,IF(Data!M43="","",Data!M43),IF(Data!AB43="","",Data!AB43)) -> H1 | T2: =IF(Data!$A$1=TRUE,IF(Data!N43="","",Data!N43),IF(Data!AC43="","",Data!AC43)) -> 9M | U2: =IF(Data!$A$1=TRUE,IF(Data!O43="","",Data!O43),IF(Data!AD43="","",Data!AD43)) -> FY
B4: Generation Market Share (average) | D4: =Data!C45 -> 0.4344533292 | E4: =Data!D45 -> 0.395283067 | F4: =Data!E45 -> 0.3440913635 | H4: =IF(Data!$A$1=TRUE,Data!G45,Data!V45) -> 0.3909543733 | I4: =IF(Data!$A$1=TRUE,Data!H45,Data!W45) -> 0.3731608976 | J4: =IF(Data!$A$1=TRUE,Data!I45,Data!X45) -> 0.3857979649 | K4: =IF(Data!$A$1=TRUE,Data!J45,Data!Y45) -> 0.395283067 | M4: =IF(Data!$A$1=TRUE,Data!L45,Data!AA45) -> 0.3321838469 | N4: =IF(Data!$A$1=TRUE,Data!M45,Data!AB45) -> 0.3291745543 | O4: =IF(Data!$A$1=TRUE,Data!N45,Data!AC45) -> 0.3454303439 | P4: =IF(Data!$A$1=TRUE,Data!O45,Data!AD45) -> 0.3440913635 | R4: =IF(Data!$A$1=TRUE,IF(Data!Q45="","",Data!Q45),IF(Data!AF45="","",Data!AF45)) -> 0.3435907239 | S4: =IF(Data!$A$1=TRUE,IF(Data!R45="","",Data!R45),IF(Data!AG45="","",Data!AG45)) -> 0.3182648561 | T4: =IF(Data!$A$1=TRUE,IF(Data!S45="","",Data!S45),IF(Data!AH45="","",Data!AH45)) -> 0.3063284979 | U4: =IF(Data!$A$1=TRUE,IF(Data!T45="","",Data!T45),IF(Data!AI45="","",Data!AI45)) -> 
B6: Retail Market Share (average) | D6: =Data!C47 -> 0.6239325162 | E6: =Data!D47 -> 0.5651024043 | F6: =Data!E47 -> 0.5065759618 | H6: =IF(Data!$A$1=TRUE,Data!G47,Data!V47) -> 0.6079983067 | I6: =IF(Data!$A$1=TRUE,Data!H47,Data!W47) -> 0.5817904188 | J6: =IF(Data!$A$1=TRUE,Data!I47,Data!X47) -> 0.5733856076 | K6: =IF(Data!$A$1=TRUE,Data!J47,Data!Y47) -> 0.5651024043 | M6: =IF(Data!$A$1=TRUE,Data!L47,Data!AA47) -> 0.5061851898 | N6: =IF(Data!$A$1=TRUE,Data!M47,Data!AB47) -> 0.5025876763 | O6: =IF(Data!$A$1=TRUE,Data!N47,Data!AC47) -> 0.5049495018 | P6: =IF(Data!$A$1=TRUE,Data!O47,Data!AD47) -> 0.5065759618 | R6: =IF(Data!$A$1=TRUE,IF(Data!Q47="","",Data!Q47),IF(Data!AF47="","",Data!AF47)) -> 0.5015692807 | S6: =IF(Data!$A$1=TRUE,IF(Data!R47="","",Data!R47),IF(Data!AG47="","",Data!AG47)) -> 0.5020286928 | T6: =IF(Data!$A$1=TRUE,IF(Data!S47="","",Data!S47),IF(Data!AH47="","",Data!AH47)) -> 0.5092111898 | U6: =IF(Data!$A$1=TRUE,IF(Data!T47="","",Data!T47),IF(Data!AI47="","",Data!AI47)) -> 
B7: Retail Market Share (Mainland end of period)1 | D7: =Data!C48 -> 0.6329 | E7: =Data!D48 -> 0.5611 | F7: =Data!E48 -> 0.5192 | H7: =IF(Data!$A$1=TRUE,Data!G48,Data!V48) -> 0.6153 | I7: =IF(Data!$A$1=TRUE,Data!H48,Data!W48) -> 0.5499 | J7: =IF(Data!$A$1=TRUE,Data!I48,Data!X48) -> 0.541 | K7: =IF(Data!$A$1=TRUE,Data!J48,Data!Y48) -> 0.5611 | M7: =IF(Data!$A$1=TRUE,Data!L48,Data!AA48) -> 0.5085 | N7: =IF(Data!$A$1=TRUE,Data!M48,Data!AB48) -> 0.5253 | O7: =IF(Data!$A$1=TRUE,Data!N48,Data!AC48) -> 0.506 | P7: =IF(Data!$A$1=TRUE,Data!O48,Data!AD48) -> 0.5192 | R7: =IF(Data!$A$1=TRUE,IF(Data!Q48="","",Data!Q48),IF(Data!AF48="","",Data!AF48)) -> 0.4987 | S7: =IF(Data!$A$1=TRUE,IF(Data!R48="","",Data!R48),IF(Data!AG48="","",Data!AG48)) -> 0.4959 | T7: =IF(Data!$A$1=TRUE,IF(Data!S48="","",Data!S48),IF(Data!AH48="","",Data!AH48)) -> 0.4921 | U7: =IF(Data!$A$1=TRUE,IF(Data!T48="","",Data!T48),IF(Data!AI48="","",Data!AI48)) -> 
B10: PPC Market Shares (Romania)2
B11: Generation Market Share on RES (average)³ | E11: =Data!D53 -> 0.1410329297 | F11: =Data!E53 -> 0.1558573862 | H11: =IF(Data!$A$1=TRUE,Data!G53,Data!V53) ->  | I11: =IF(Data!$A$1=TRUE,Data!H53,Data!W53) ->  | J11: =IF(Data!$A$1=TRUE,Data!I53,Data!X53) ->  | K11: =IF(Data!$A$1=TRUE,Data!J53,Data!Y53) ->  | M11: =IF(Data!$A$1=TRUE,Data!L53,Data!AA53) -> 0.1433877583 | N11: =IF(Data!$A$1=TRUE,Data!M53,Data!AB53) -> 0.1423436054 | O11: =IF(Data!$A$1=TRUE,Data!N53,Data!AC53) -> 0.1315963285 | P11: =IF(Data!$A$1=TRUE,Data!O53,Data!AD53) -> 0.1558573862 | R11: =IF(Data!$A$1=TRUE,IF(Data!Q53="","",Data!Q53),IF(Data!AF53="","",Data!AF53)) -> 0.2638637075 | S11: =IF(Data!$A$1=TRUE,IF(Data!R53="","",Data!R53),IF(Data!AG53="","",Data!AG53)) -> 0.2325781105 | T11: =IF(Data!$A$1=TRUE,IF(Data!S53="","",Data!S53),IF(Data!AH53="","",Data!AH53)) -> 0.2220689415 | U11: =IF(Data!$A$1=TRUE,IF(Data!T53="","",Data!T53),IF(Data!AI53="","",Data!AI53)) -> 
B12: Retail Market Share (average) | E12: =Data!D54 -> 0.1787160836 | F12: =Data!E54 -> 0.1599940052 | H12: =IF(Data!$A$1=TRUE,Data!G54,Data!V54) -> 0.2062819984 | I12: =IF(Data!$A$1=TRUE,Data!H54,Data!W54) -> 0.1914606521 | J12: =IF(Data!$A$1=TRUE,Data!I54,Data!X54) -> 0.1844330851 | K12: =IF(Data!$A$1=TRUE,Data!J54,Data!Y54) -> 0.1787160836 | M12: =IF(Data!$A$1=TRUE,Data!L54,Data!AA54) -> 0.1573521915 | N12: =IF(Data!$A$1=TRUE,Data!M54,Data!AB54) -> 0.154924182 | O12: =IF(Data!$A$1=TRUE,Data!N54,Data!AC54) -> 0.1580618251 | P12: =IF(Data!$A$1=TRUE,Data!O54,Data!AD54) -> 0.1599940052 | R12: =IF(Data!$A$1=TRUE,IF(Data!Q54="","",Data!Q54),IF(Data!AF54="","",Data!AF54)) -> 0.1637804992 | S12: =IF(Data!$A$1=TRUE,IF(Data!R54="","",Data!R54),IF(Data!AG54="","",Data!AG54)) -> 0.1578443376 | T12: =IF(Data!$A$1=TRUE,IF(Data!S54="","",Data!S54),IF(Data!AH54="","",Data!AH54)) -> 0.1552639095 | U12: =IF(Data!$A$1=TRUE,IF(Data!T54="","",Data!T54),IF(Data!AI54="","",Data!AI54)) -> 
B14: Source: Company data. Based on provisional data for Q3 2025 and 9M 2025. 1. ΕnEx monthly reports 2. ANRE 3. Market Share in RES excl. Large Hydro

Sheet Installed Capacity
D2: 31.12.2023 | E2: 31.12.2024 | F2: 31.03.2025 | G2: 30.06.2025 | H2: 30.09.2025
B4: Installed Capacity (in MW) - Greece | D4: =SUM(D5:D8) -> 10106.64 | E4: =SUM(E5:E8) -> 10273.03 | F4: =SUM(F5:F8) -> 11002.05 | G4: =SUM(G5:G8) -> 11090 | H4: =SUM(H5:H8) -> 11067.5775
B5: Gas | D5: 2689.25 | E5: 2689.25 | F5: 2689.25 | G5: 2689 | H5: 2689.25
B6: Oil | D6: 1820.69 | E6: 1802.6 | F6: 1848 | G6: 1848 | H6: 1755.412
B7: Lignite | D7: 1625 | E7: 1655 | F7: 1655 | G7: 1655 | H7: 1655
B8: RES | D8: =SUM(D9:D12) -> 3971.7 | E8: 4126.18 | F8: =SUM(F9:F12) -> 4809.8 | G8: =SUM(G9:G12) -> 4898 | H8: =SUM(H9:H12) -> 4967.9155
B9: Large Hydro | D9: 3170.7 | E9: 3170.7 | F9: 3170.7 | G9: 3171 | H9: 3170.7
B10: Wind | D10: 273 | E10: 273.24 | F10: 316.24 | G10: 319 | H10: 319.1
B11: Solar | D11: 445 | E11: 599.24 | F11: 1240.24 | G11: 1323 | H11: 1393.4
B12: Other | D12: 83 | E12: 83 | F12: 82.62 | G12: 85 | H12: 84.7155
D14: =D2 -> 31.12.2023 | E14: =E2 -> 31.12.2024 | F14: =F2 -> 31.03.2025 | G14: 30.06.2025 | H14: 30.09.2025
B16: Installed Capacity (in MW) - Romania | D16: =SUM(D17:D19) -> 597 | E16: =SUM(E17:E19) -> 1336 | F16: =SUM(F17:F19) -> 1336 | G16: =SUM(G17:G19) -> 1336 | H16: =SUM(H17:H19) -> 1336.351
B17: Wind | D17: 499 | E17: 1183 | F17: 1183 | G17: 1183 | H17: 1183
B18: Solar | D18: 98 | E18: 124 | F18: 124 | G18: 124 | H18: 124
B19: Other | D19: 0 | E19: 29 | F19: 29 | G19: 29 | H19: 29.351
D21: =D2 -> 31.12.2023 | E21: =E2 -> 31.12.2024 | F21: =F2 -> 31.03.2025 | G21: 30.06.2025 | H21: 30.09.2025
B23: Installed Capacity (in MW) - Bulgaria | D23: =D24 -> 0 | E23: =E24 -> 18 | F23: =F24 -> 18 | G23: =G24 -> 18 | H23: =H24 -> 18
B24: Wind | D24: 0 | E24: 18 | F24: 18 | G24: 18 | H24: 18
D26: =D2 -> 31.12.2023 | E26: =E2 -> 31.12.2024 | F26: 31.03.2025 | G26: 30.06.2025 | H26: 30.09.2025
B28: Installed Capacity (in MW) - Italy | D28: =D29 -> 0 | E28: =E29 -> 0 | F28: =F29 -> 32 | G28: =G29 -> 32 | H28: =H29 -> 32
B29: Solar | F29: 32 | G29: 32 | H29: 32
D31: =D2 -> 31.12.2023 | E31: =E2 -> 31.12.2024 | F31: =F2 -> 31.03.2025 | G31: 30.06.2025 | H31: 30.09.2025
B33: Installed Capacity (in MW) - GROUP | D33: =SUM(D34:D37) -> 10703.64 | E33: 11627.03 | F33: =SUM(F34:F37) -> 12388.05 | G33: =SUM(G34:G37)+1 -> 12477 | H33: =SUM(H34:H37) -> 12453.9285
B34: Gas | D34: =D5 -> 2689.25 | E34: 2689.25 | F34: 2689.25 | G34: =G5 -> 2689 | H34: 2689.25
B35: Oil | D35: 1820.69 | E35: 1802.6 | F35: 1848 | G35: =G6 -> 1848 | H35: 1755.412
B36: Lignite | D36: 1625 | E36: 1655 | F36: 1655 | G36: =G7 -> 1655 | H36: 1655
B37: RES | D37: =SUM(D38:D41) -> 4568.7 | E37: 5480.18 | F37: =SUM(F38:F41) -> 6195.8 | G37: =SUM(G38:G41) -> 6284 | H37: 6354.2665
B38: Large Hydro | D38: =D9 -> 3170.7 | E38: =E9 -> 3170.7 | F38: =F9 -> 3170.7 | G38: =G9 -> 3171 | H38: =H9 -> 3170.7
B39: Wind | D39: =D10+D17+D24 -> 772 | E39: =E10+E17+E24 -> 1474.24 | F39: =F10+F17+F24 -> 1517.24 | G39: =G10+G17+G24 -> 1520 | H39: =H10+H17+H24 -> 1520.1
B40: Solar | D40: =D11+D18+D29 -> 543 | E40: =E11+E18+E29 -> 723.24 | F40: =F11+F18+F29 -> 1396.24 | G40: =G11+G18+G29 -> 1479 | H40: =H11+H18+H29 -> 1549.4
B41: Other | D41: =D12+D19 -> 83 | E41: =E12+E19 -> 112 | F41: =F12+F19 -> 111.62 | G41: =G12+G19 -> 114 | H41: =H12+H19 -> 114.0665

Sheet Other Operational KPIs
H1: =Data!$G$1 -> 2023 | M1: =Data!$L$1 -> 2024 | R1: =Data!$Q$1 -> 2025
B2: Other Operational KPIs | D2: 2022 | E2: 2023 | F2: 2024 | H2: =IF(Data!$A$1=TRUE,Data!G2,Data!V2) -> Q1 | I2: =IF(Data!$A$1=TRUE,Data!H2,Data!W2) -> H1 | J2: =IF(Data!$A$1=TRUE,Data!I2,Data!X2) -> 9M | K2: =IF(Data!$A$1=TRUE,Data!J2,Data!Y2) -> FY | M2: Q1 | N2: H1 | O2: 9M | P2: FY | R2: Q1 | S2: H1 | T2: 9M | U2: =IF(Data!$A$1=TRUE,Data!O2,Data!AD2) -> FY
B4: RES capacity | D4: 3.48 GW | E4: 4.6 GW | F4: 5.5 GW | J4: 3.8 GW | K4: 4.6 GW | M4: 4.7 GW | N4: 4.7 GW | O4: 4.9 GW | P4: 5.5 GW | R4: 6.2 GW | S4: 6.3 GW | T4: 6.4 GW
B5: RES capacity on total (%) | D5: 32.9% | E5: 0.427 | F5: 0.471 | J5: 0.37 | K5: 0.427 | M5: 0.431 | N5: 0.408 | O5: 0.418 | P5: 0.471 | R5: 0.5 | S5: 0.5 | T5: 0.5102215061
B6: RES production | D6: 4,491 GWh | E6: 6.1TWh | F6: 6.2TWh | J6: 3,358 GWh | K6: 6.1TWh | M6: 1.6 TWh | N6: 3.1TWh | O6: 4.8 TWh | P6: 6.2TWh | R6: 1.5 TWh | S6: 3.1 ΤWh | T6: 5.1 ΤWh
B7: RES production on total (%) | D7: 19.9% | E7: 0.297 | F7: 0.295 | J7: 0.236 | K7: 0.297 | M7: 0.337 | N7: 33.1% | O7: 0.308 | P7: 0.295 | R7: 0.271 | S7: 0.32 | T7: 0.3315241926
B8: CO2 emissions intensity (Scope 1) | D8: 0.66 tCO2/MWh | E8: 0.50 tCO2/MWh | F8: 0.49 tCO2/MWh | J8: 0.53 tCO2/MWh | K8: 0.50 tCO2/MWh | M8: 0.50 tCO2/MWh | N8: 0.47 tCO2/MWh | O8: 0.48 tCO2/MWh | P8: 0.49 tCO2/MWh | R8: 0.55 tCO2/MWh | S8: 0.49 tCO2/MWh | T8: 0.47 tCO2/MWh
B9: CO2 emissions (Scope 1) | D9: 14.8 MtCO2 | E9: 9.7 MtCO2 | F9: 10.3 MtCO2 | J9: 7.6 MtCO2 | K9: 9.7 MtCO2 | M9: 2.3 MtCO2 | N9: 4.4MtCO2 | O9: 7.5 MtCO2 | P9: 10.3 MtCO2 | R9: 3.1 MtCO2 | S9: 4.8 MtCO2 | T9: 7.2 MtCO2
B11: SAIDI (Greece/Romania)1 | D11: 138/91 mins | E11: 134/89 mins | F11: 132/82 mins | J11: 106/66 mins | K11: 134/89 mins | M11: 26/19 mins | N11: 59/38 mins | O11: 109/60 mins | P11: 132/82 mins | R11: 21/19 mins | S11: 58/36 mins | T11: 83/56 mins
B12: SAIFI (Greece/Romania)1 | D12: 1.8/2.6 | E12: 1.8/2.5 | F12: 1.7/2.3 | J12: 1.5/1.9 | K12: 1.8/2.5 | M12: 0.3/0.6 | N12: 0.78/1.15 | O12: 1.4/1.8 | P12: 1.7/2.3 | R12: 0.3/0.5 | S12: 0.72/0.96 | T12: 1.24/1.45
B13: Total network length (Greece and Romania) | D13: 377 k km | E13: 380 k km | F13: 386 k km | J13: 247/133 k km | K13: 380 k km | M13: 383 k km | N13: 383 k km | O13: 385 k km | P13: 386 k km | R13: 388 k km | S13: 388 k km | T13: 389 k km
B15: Online penetration/myPPC app (Greece) | D15: 25.6% | E15: 0.29 | F15: 0.3 | J15: 0.278 | K15: 0.29 | M15: 0.299 | N15: 30.7% | O15: 0.317 | P15: 0.3 | R15: 0.32 | S15: 33.5% | T15: 0.349
B16: Online penetration/myPPC app (Romania) | D16: 0.4 | E16: 0.59 | F16: 0.62 | J16: 0.582 | K16: 0.59 | M16: 0.6 | N16: 0.6 | O16: 0.61 | P16: 0.62 | R16: 0.64 | S16: 0.64 | T16: 0.65
B17: Charging points installed (Greece & Romania) | D17: 1360 | E17: 2401 | F17: 3087 | J17: 1731 | K17: 2401 | M17: 2490 | N17: 2696 | O17: 2925 | P17: 3087 | R17: 3267 | S17: 3509 | T17: 3752
B19: 1. Based on provisional data for Q3 2025 and 9M 2025.

Sheet Income Statement
B2: Consolidated Income Statement (Condensed) | D2: GROUP
B4: (in €m - except share and per share data) | C4: 01.01.2022-31.12.2022 | D4: 01.01.2023-31.12.2023 | E4: 01.01.2024-31.12.2024 | G4: 01.01.2025-30.06.2025 | H4: 01.01.2024-30.06.2024 | J4: 01.01.2024-30.09.2024 | K4: 01.01.2025-30.09.2025
B5: REVENUES:
B6: Revenue from energy sales | C6: 10712.719 | D6: 6409.218 | E6: 6588.461 | G6: 3455.049 | H6: 2968.174 | J6: 4905.461 | K6: 5396.052
B7: Revenue from natural gas sales | C7: 4.92 | D7: 58.558 | E7: 189.418 | G7: 128.936 | H7: 113.895 | J7: 123.813 | K7: 140.647
B8: Other sales | C8: 535.468 | D8: 1218.991 | E8: 2200.728 | G8: 1061.567 | H8: 943.698 | J8: 1553.104 | K8: 1730.902
B9: Total | C9: =SUM(C6:C8) -> 11253.107 | D9: =SUM(D6:D8) -> 7686.767 | E9: =SUM(E6:E8) -> 8978.607 | G9: =SUM(G6:G8) -> 4645.552 | H9: =SUM(H6:H8) -> 4025.767 | J9: =SUM(J6:J8) -> 6582.378 | K9: =SUM(K6:K8) -> 7267.601
B11: EXPENSES:
B12: Payroll cost | C12: 768.554 | D12: 782.156 | E12: 939.209 | G12: 534.321 | H12: 440.946 | J12: 681.21 | K12: 777.589
B13: Merchandise | C13: 0 | D13: 1.126 | E13: 428.288 | G13: 271.149 | H13: 107.619 | J13: 239.324 | K13: 411.507
B14: Liquid Fuels | C14: 853.239 | D14: 724.522 | E14: 725.205 | G14: 300.7 | H14: 297.269 | J14: 585.309 | K14: 575.304
B15: Natural Gas | C15: 1758.161 | D15: 739.939 | E15: 882.731 | G15: 462.36 | H15: 380.368 | J15: 608.136 | K15: 620.026
B16: Depreciation and amortization | C16: 640.38 | D16: 672.159 | E16: 928.364 | G16: 557.946 | H16: 446.541 | J16: 683.609 | K16: 847.709
B17: Energy purchases | C17: 4720.24 | D17: 1944.223 | E17: 1722.349 | G17: 967.685 | H17: 658.413 | J17: 1255.199 | K17: 1461.905
B18: Emission allowances | C18: 1037.545 | D18: 826.209 | E18: 833.153 | G18: 332.849 | H18: 362.015 | J18: 607.545 | K18: 504.377
B19: Provisions for expected credit losses | C19: 207.526 | D19: 186.262 | E19: 46.84 | G19: -41.706 | H19: 116.066 | J19: 123.947 | K19: 14.66
B20: Financial (income)/expense, net | C20: 288.987 | D20: 282.437 | E20: 373.752 | G20: 220.956 | H20: 180.519 | J20: 260.762 | K20: 334.734
B21: Impairment loss on assets, bargain purchase gain and gain from remeasurment of investment in associates | C21: -197.675 | D21: -209.457 | E21: 207.211 | G21: -6.914 | H21: 1.492 | J21: 14.022 | K21: -10.855
B22: (Gains)/losses from associates and joint ventures | C22: -61.677 | D22: 5.08 | E22: 3.512 | G22: -4.624 | H22: -0.734 | J22: 0.546 | K22: -7.781
B23: Other (income) / expenses, net | C23: 1263.823 | D23: 1100.688 | E23: 1681.394 | G23: 834.12 | H23: 784.245 | J23: 1254.777 | K23: 1218.12
B24: Total | C24: =SUM(C12:C23) -> 11279.103 | D24: =SUM(D12:D23) -> 7055.344 | E24: =SUM(E12:E23) -> 8772.008 | G24: =SUM(G12:G23) -> 4428.842 | H24: =SUM(H12:H23) -> 3774.759 | J24: =SUM(J12:J23) -> 6314.386 | K24: =SUM(K12:K23) -> 6747.295
B26: PROFIT/(LOSS) BEFORE TAX | C26: =C9-C24 -> -25.996 | D26: =D9-D24 -> 631.423 | E26: =E9-E24 -> 206.599 | G26: =G9-G24 -> 216.71 | H26: =H9-H24 -> 251.008 | J26: =J9-J24 -> 267.992 | K26: =K9-K24 -> 520.306
B27: Income tax | C27: 17.081 | D27: -137.231 | E27: -19.429 | G27: -69.058 | H27: -61.982 | J27: -68.738 | K27: -139.982
B29: NET PROFIT / (LOSS) | C29: =C26+C27 -> -8.915 | D29: =D26+D27 -> 494.192 | E29: =E26+E27 -> 187.17 | G29: =G26+G27 -> 147.652 | H29: =H26+H27 -> 189.026 | J29: =J26+J27 -> 199.254 | K29: =K26+K27 -> 380.324
B32: Attributable to:
B33: Shareholders of the company | C33: -19.003 | D33: 437.532 | E33: 151.788 | G33: 126.362 | H33: 124.902 | J33: =+J29-J34 -> 122.003 | K33: =+K29-K34 -> 337.524
B34: Non – controlling interests | C34: 10.088 | D34: 56.66 | E34: 35.382 | G34: 21.29 | H34: 64.124 | J34: 77.251 | K34: 42.8
B36: Earnings / (Losses) per share, basic and dilluted | C36: -0.02 | D36: 1.181 | E36: 0.43 | G36: 0.3638408888 | H36: 0.3451296568 | J36: 0.339 | K36: 0.968
B38: Weighted average number of shares (in m.) | C38: 380104130 | D38: 370.370209 | E38: 352.673699 | G38: 347.299193 | H38: 361.897346 | J38: 360.2107999 | K38: 348.56065
B40: 1. For 2023: Restated figures compared to those published on 31.12.2023. For additional information, please see Note 6 of the Annual Financial Report 2024 (https://www.ppcgroup.com/media/wluldx1q/financial-report-2024.pdf).

Sheet Cash Flow
B2: Consolidated Cash Flow Statement (Condensed) | D2: GROUP
B4: (in €m) | C4: 01.01.2022-31.12.2022 | D4: 01.01.2023-31.12.2023 | E4: 01.01.2024-31.12.2024 | G4: 01.01.2024-31.03.2024 | H4: 01.01.2025-31.03.2025 | J4: 01.01.2025-30.06.2025 | K4: 01.01.2024-30.06.2024 | M4: 01.01.2024-30.09.2024 | N4: 01.01.2025-30.09.2025
B6: Cash Flows from Operating activities
B8: Profit / (Loss) before tax | C8: -25.996 | D8: 631.423 | E8: 206.599 | G8: 121.802 | H8: 62.389 | J8: 216.71 | K8: 251.008 | M8: 267.992 | N8: 520.306
B10: Adjustments:
B11: Depreciation and amortization | C11: 619.883 | D11: 632.815 | E11: 863.561 | G11: 203.892 | H11: 259.308 | J11: 530.684 | K11: 418.025 | M11: 633.785 | N11: 802.901
B12: Unbilled revenue | C12: -154.882 | D12: 226.804 | E12: 169.135 | G12: 158.016 | H12: 11.424 | J12: 46.561 | K12: 216.889 | M12: 342.783 | N12: 123.871
B13: Bargain gain from Romanian subsidiaries acqusition | C13: 0 | D13: -243.175 | E13: 0 | G13: 0 | H13: 0
B14: Other adjustments | C14: 37.683 | D14: 192.362 | E14: 254.294 | G14: 119.905 | H14: -28.437 | J14: 17.834 | K14: 103.957 | M14: 179.32 | N14: -4.828
B15: Operating profit/(loss) before working capital changes | C15: =SUM(C8:C14) -> 476.688 | D15: =SUM(D8:D14) -> 1440.229 | E15: =SUM(E8:E14) -> 1493.589 | G15: =SUM(G8:G14) -> 603.615 | H15: =SUM(H8:H14) -> 304.684 | J15: =SUM(J8:J14) -> 811.789 | K15: =SUM(K8:K14) -> 989.879 | M15: =SUM(M8:M14) -> 1423.88 | N15: =SUM(N8:N14) -> 1442.25
B17: (Increase)/decrease in:
B18: Trade receivables | C18: -487.418 | D18: -322.668 | E18: 1.852 | G18: 21.821 | H18: -105.645 | J18: -75.127 | K18: -4.115 | M18: -244.559 | N18: -332.309
B19: Inventories | C19: -205.102 | D19: -84.514 | E19: -4.165 | G19: -11.389 | H19: -35.296 | J19: -67.036 | K19: 23.049 | M19: 12.463 | N19: -134.011
B20: Increase/(decrease) in:
B21: Trade payables | C21: 33.67 | D21: 441.952 | E21: 423.75 | G21: -279.081 | H21: -356.85 | J21: -269.183 | K21: -219.867 | M21: -185.878 | N21: -259.769
B22: Proceeds from long-term contract liabilities | C22: 134.216 | D22: 95.472 | E22: 154.691 | G22: 31.572 | H22: 41.841 | J22: 90.297 | K22: 63.618 | M22: 94.855 | N22: 121.223
B23: Other receivables/payables | C23: 198.981 | D23: -64.748 | E23: -390.958 | G23: 58.739 | H23: 627.699 | J23: 113.695 | K23: -139.401 | M23: -496.689 | N23: -167.315
B25: Net Cash from / (used in) Operating Activities | C25: =SUM(C15,C18:C23) -> 151.035 | D25: =SUM(D15,D18:D23) -> 1505.723 | E25: =SUM(E15,E18:E23) -> 1678.759 | G25: =SUM(G15,G18:G23) -> 425.277 | H25: =SUM(H15,H18:H23) -> 476.433 | J25: =SUM(J15,J18:J23) -> 604.435 | K25: =SUM(K15,K18:K23) -> 713.163 | M25: =SUM(M15,M18:M23) -> 604.072 | N25: =SUM(N15,N18:N23) -> 670.069
B27: Cash Flows from Investing Activities
B28: Interest and dividends received | C28: 43.857 | D28: 139.004 | E28: 158.581 | G28: 35.29 | H28: 27.027 | J28: 68.715 | K28: 78.129 | M28: 129.609 | N28: 102.141
B29: Capital expenditure for property, plant and equipment and intangible assets | C29: -686.211 | D29: -1168.056 | E29: -1875.222 | G29: -322.985 | H29: -476.075 | J29: -1073.616 | K29: -709.018 | M29: -1183.869 | N29: -1615.546
B30: Investments in subsidiaries and associates | C30: 17.958 | D30: -2.784 | E30: -21.046 | G30: -23.96 | H30: -0.31 | J30: -0.838 | K30: -23.469 | M30: -20.219 | N30: -1.58
B31: Proceeds from subsidies and from the sale of subsidiary | C31: 58.336 | D31: 6 | E31: 19.871 | G31: 3.166 | H31: 0.557 | J31: 0.279 | K31: 3.166 | M31: 3.166 | N31: 0.278
B32: Acquisition of subsidiaries, net of cash acquired and Loan receivables from former shareholder | C32: -57.191 | D32: -1744.208 | E32: -976.646 | G32: -153.785 | H32: 0 | J32: -95.062 | K32: -389.106 | M32: -410.462 | N32: -156.198
B33: Net Cash from/ (used in) Investing Activities | C33: =SUM(C28:C32) -> -623.251 | D33: =SUM(D28:D32) -> -2770.044 | E33: =SUM(E28:E32) -> -2694.462 | G33: =SUM(G28:G32) -> -462.274 | H33: =SUM(H28:H32) -> -448.801 | J33: =SUM(J28:J32) -> -1100.522 | K33: =SUM(K28:K32) -> -1040.298 | M33: =SUM(M28:M32) -> -1481.775 | N33: =SUM(N28:N32) -> -1670.905
B35: Cash Flows from Financing Activities
B36: Net change in short-term borrowings | C36: -163.004 | D36: -39.968 | E36: -17.079 | G36: 78.284 | H36: 197.273 | J36: 425.854 | K36: 96.555 | M36: 190.133 | N36: 411.732
B37: Proceeds from long-term borrowing | C37: 392.304 | D37: 2424.9 | E37: 2378.163 | G37: 372.479 | H37: 400.887 | J37: 876.479 | K37: 546.684 | M37: 839.275 | N37: 1358.913
B38: Principal payments of long-term borrowing | C38: -471.404 | D38: -1276.526 | E38: -1193.018 | G38: -398.012 | H38: -105.623 | J38: -675.063 | K38: -507.229 | M38: -737.389 | N38: -777.866
B39: Principal lease payments of right-of-use assets | C39: -39.122 | D39: -49.615 | E39: -86.63 | G39: -14.874 | H39: -17.409 | J39: -39.491 | K39: -35.813 | M39: -64.134 | N39: -60.092
B40: Interest paid and loans’ issuance fees | C40: -160.368 | D40: -198.164 | E40: -340.501 | G40: -101.299 | H40: -63.128 | J40: -186.973 | K40: -150.615 | M40: -243.924 | N40: -241.49
B41: Dividends paid | C41: -41.65 | D41: -62.475 | E41: -154.896 | G41: 0 | H41: 0 | J41: -29.6 | K41: -44.606 | M41: -134.071 | N41: -167.049
B42: Treasury shares | C42: -40.683 | D42: -109.125 | E42: -171.548 | G42: -25.217 | H42: -37.156 | J42: -66.18 | K42: -66.204 | M42: -110.65 | N42: -88.387
B43: Proceeds from the sale of subsidiary | C43: 1323.276
B44: Share Capital from NCI | C44: 0 | D44: 15.611 | E44: 0 | G44: 0 | H44: 0
B45: Net Cash from / (used in) Financing Activities | C45: =SUM(C36:C44) -> 799.349 | D45: =SUM(D36:D44) -> 704.638 | E45: =SUM(E36:E44) -> 414.491 | G45: =SUM(G36:G44) -> -88.639 | H45: =SUM(H36:H44) -> 374.844 | J45: =SUM(J36:J44) -> 305.026 | K45: =SUM(K36:K44) -> -161.228 | M45: =SUM(M36:M44) -> -260.76 | N45: =SUM(N36:N44) -> 435.761
B47: Net increase / (decrease) in cash and cash equivalents | C47: =C25+C33+C45 -> 327.133 | D47: -559.682 | E47: -601.212 | G47: -125.637 | H47: 402.476 | J47: -191.062 | K47: -488.362 | M47: =+M25+M33+M45 -> -1138.463 | N47: =+N25+N33+N45 -> -565.075
B48: Cash and cash equivalents at the beginning of the period | C48: 2832.351 | D48: 3159.484 | E48: 2599.802 | G48: 2599.802 | H48: 1998.59 | J48: 1998.59 | K48: 2599.802 | M48: 2599.802 | N48: 1998.59
B49: Net foreign exchange difference | J49: -3.35 | K49: 0 | M49: 0 | N49: -5.166057899
B50: Cash and cash equivalents at the end of the period | C50: =C47+C48 -> 3159.484 | D50: =D47+D48 -> 2599.802 | E50: 1998.59 | G50: =G47+G48 -> 2474.165 | H50: =H47+H48 -> 2401.066 | J50: =J48+J49+J47 -> 1804.178 | K50: =K48+K49+K47 -> 2111.44 | M50: =M48+M49+M47 -> 1461.339 | N50: =N48+N49+N47 -> 1428.348942
B52: 1. For 2023: Restated figures compared to those published on 31.12.2023. For additional information, please see Note 6 of the Annual Financial Report 2024 (https://www.ppcgroup.com/media/wluldx1q/financial-report-2024.pdf).

Sheet Balance Sheet
B2: Consolidated Statement of Financial Position (Condensed) | C2: GROUP
B4: (in €m) | C4: 31.12.2023 | D4: 31.12.2024 | F4: 31.03.2025 | G4: 30.06.2025 | H4: 30.09.2025
B6: ASSETS
B8: Non – Current Assets:
B9: Property, plant and equipment, net | C9: 13299.047 | D9: 16160.601 | F9: 16352.556 | G9: 16610.138 | H9: 16823.308
B10: Intangible assets, net | C10: 1112.555 | D10: 957.249 | F10: 891.763 | G10: 1047.226 | H10: 1017.019
B11: Deferred tax asset | C11: 292.654 | D11: 645.896 | F11: 643.204 | G11: 618.191 | H11: 543.162
B12: Other non- current assets | C12: 454.248 | D12: 1100.604 | F12: 1125.369 | G12: 1175.484 | H12: 1192.732
B13: Total non-current assets | C13: =SUM(C9:C12) -> 15158.504 | D13: =SUM(D9:D12) -> 18864.35 | F13: =SUM(F9:F12) -> 19012.892 | G13: =SUM(G9:G12) -> 19451.039 | H13: =SUM(H9:H12) -> 19576.221
B15: Current Assets:
B16: Inventories | C16: 1046.531 | D16: 1290.348 | F16: 1321.793 | G16: 1346.374 | H16: 1411.399
B17: Trade receivables | C17: 1552.674 | D17: 1593.04 | F17: 1777.427 | G17: 1701.319 | H17: 1895.086
B18: Cash and cash equivalents and Restricted cash | C18: 2777.289 | D18: 2378.042 | F18: 2760.787 | G18: 2147.016 | H18: 1828.829
B19: Other current assets | C19: 3322.33 | D19: 3193.549 | F19: 2667.361 | G19: 2767.457 | H19: 2713.992
B20: Total Current Assets | C20: =SUM(C16:C19) -> 8698.824 | D20: =SUM(D16:D19) -> 8454.979 | F20: =SUM(F16:F19) -> 8527.368 | G20: =SUM(G16:G19) -> 7962.166 | H20: =SUM(H16:H19) -> 7849.306
B22: Total Assets | C22: =C13+C20 -> 23857.328 | D22: =D13+D20 -> 27319.329 | F22: =F13+F20 -> 27540.26 | G22: =G13+G20 -> 27413.205 | H22: =H13+H20 -> 27425.527
B24: EQUITY AND LIABILITIES
B25: EQUITY:
B26: Total Equity attributable to owners of the Parent | C26: 4550.75 | D26: 5046.467 | F26: 5076.168 | G26: 5043.77 | H26: 5252.848
B27: Non-Controlling interests | C27: 813.441 | D27: 994.479 | F27: 1006.89 | G27: 961.336 | H27: 986.91
B28: Total Equity | C28: =SUM(C26:C27) -> 5364.191 | D28: 6040.946 | F28: =SUM(F26:F27) -> 6083.058 | G28: =SUM(G26:G27) -> 6005.106 | H28: =SUM(H26:H27) -> 6239.758
B30: Non-Current Liabilities:
B31: Long - term borrowings | C31: 4419.795 | D31: 6233.016 | F31: 5715.574 | G31: 6029.927 | H31: 6257.51
B32: Provisions | C32: 799.855 | D32: 743.673 | F32: 726.697 | G32: 702.102 | H32: 678.66
B33: Financial liability from NCI Put option | C33: 1431.001 | D33: 1463.914 | F33: 1473.429 | G33: 1482.945 | H33: 1492.46
B34: Other non-current liabilities | C34: 3916.761 | D34: 4778.912 | F34: 4845.34 | G34: 4830.594 | H34: 4822.965
B35: Total Non-Current Liabilities | C35: =SUM(C31:C34) -> 10567.412 | D35: 13219.515 | F35: =SUM(F31:F34) -> 12761.04 | G35: 13045.568 | H35: =SUM(H31:H34) -> 13251.595
B37: Current Liabilities:
B38: Trade and other payables | C38: 2095.15 | D38: 2729.14 | F38: 2342.947 | G38: 2449.651 | H38: 2414.122
B39: Short – term borrowings and Current portion of long - term borrowings | C39: 1421.131 | D39: 922.575 | F39: 1904.936 | G39: 1745.317 | H39: 1870.821
B40: Other current liabilities | C40: 4409.444 | D40: 4407.153 | F40: 4448.279 | G40: 4167.563 | H40: 3649.231
B41: Total Current Liabilities | C41: =SUM(C38:C40) -> 7925.725 | D41: 8058.868 | F41: =SUM(F38:F40) -> 8696.162 | G41: 8362.531 | H41: =SUM(H38:H40) -> 7934.174
B43: Total Equity and Liabilities | C43: =C28+C35+C41 -> 23857.328 | D43: 27319.329 | F43: =F28+F35+F41 -> 27540.26 | G43: =G28+G35+G41 -> 27413.205 | H43: =H28+H35+H41 -> 27425.527
B45: 1. For 2023: Restated figures compared to those published on 31.12.2023. For additional information, please see Note 6 of the Annual Financial Report 2024 (https://www.ppcgroup.com/media/wluldx1q/financial-report-2024.pdf).

Sheet Investments
G1: =Data!$G$1 -> 2023 | L1: =Data!$L$1 -> 2024 | Q1: =Data!$Q$1 -> 2025 | V1: YoY Change (%)
B2: (in €m) | D2: 20231 | E2: 20241 | G2: =IF(Data!$A$1=TRUE,Data!G2,Data!V2) -> Q1 | H2: =IF(Data!$A$1=TRUE,Data!H2,Data!W2) -> H1 | I2: =IF(Data!$A$1=TRUE,Data!I2,Data!X2) -> 9M | J2: =IF(Data!$A$1=TRUE,Data!J2,Data!Y2) -> FY | L2: =IF(Data!$A$1=TRUE,Data!G2,Data!V2) -> Q1 | M2: =IF(Data!$A$1=TRUE,Data!H2,Data!W2) -> H1 | N2: =IF(Data!$A$1=TRUE,Data!I2,Data!X2) -> 9M | O2: =IF(Data!$A$1=TRUE,Data!J2,Data!Y2) -> FY | Q2: =IF(Data!$A$1=TRUE,Data!G2,Data!V2) -> Q1 | R2: =IF(Data!$A$1=TRUE,Data!H2,Data!W2) -> H1 | S2: =IF(Data!$A$1=TRUE,Data!N2,Data!AC2) -> 9M | T2: FY | V2: =L2 -> Q1 | W2: =M2 -> H1 | X2: =N2 -> 9M | Y2: =O2 -> FY
B4: Investments | D4: =SUM(D6:D11) -> 2589.947 | E4: =SUM(E6:E11) -> 3047.899 | G4: =SUM(G6:G11) -> 0 | H4: =SUM(H6:H11) -> 0 | I4: =SUM(I6:I11) -> 0 | J4: =SUM(J6:J11) -> 0 | L4: =SUM(L6:L11) -> 500.729 | M4: =SUM(M6:M11) -> 1121.593424 | N4: 1607.137 | O4: 3047.899 | Q4: =IF(SUM(Q6:Q11)=0,"",SUM(Q6:Q11)) -> 476.385 | R4: =IF(SUM(R6:R11)=0,"",SUM(R6:R11)) -> 1300.769 | S4: 1916.9 | V4: =IF(ISERROR(Q4/L4-1),"",Q4/L4-1) -> -0.04861711624 | W4: =IF(ISERROR(R4/M4-1),"",R4/M4-1) -> 0.1597509154 | X4: =IF(ISERROR(S4/N4-1),"",S4/N4-1) -> 0.1927421247 | Y4: =IF(ISERROR(T4/O4-1),"",T4/O4-1) -> 
B6: Renewables2 | D6: =Data!D80 -> 843 | E6: =Data!E80 -> 1289 | L6: =IF(Data!$A$1=TRUE,Data!L80,Data!AA80) -> 191.631 | M6: =IF(Data!$A$1=TRUE,Data!M80,Data!AB80) -> 280.3184239 | N6: =IF(Data!$A$1=TRUE,Data!N80,Data!AC80) -> 344.526 | O6: =IF(Data!$A$1=TRUE,Data!O80,Data!AD80) -> 1289 | Q6: =IF(Data!$A$1=TRUE,IF(Data!Q80="","",Data!Q80),Data!AF80) -> 104.046 | R6: =IF(Data!$A$1=TRUE,IF(Data!R80="","",Data!R80),Data!AG80) -> 436.241 | S6: =IF(Data!$A$1=TRUE,IF(Data!S80="","",Data!S80),Data!AH80) -> 657.3 | T6: =IF(Data!$A$1=TRUE,IF(Data!T80="","",Data!T80),Data!AI80) ->  | V6: =IF(ISERROR(Q6/L6-1),"",Q6/L6-1) -> -0.4570502685 | W6: 0.5562337787 | X6: =IF(ISERROR(S6/N6-1),"",S6/N6-1) -> 0.9078385956
B7: Distribution | D7: =Data!D81 -> 1342 | E7: =Data!E81 -> 1042.643 | L7: =IF(Data!$A$1=TRUE,Data!L81,Data!AA81) -> 228.094 | M7: =IF(Data!$A$1=TRUE,Data!M81,Data!AB81) -> 464.325 | N7: =IF(Data!$A$1=TRUE,Data!N81,Data!AC81) -> 721.08 | O7: =IF(Data!$A$1=TRUE,Data!O81,Data!AD81) -> 1042.643 | Q7: =IF(Data!$A$1=TRUE,IF(Data!Q81="","",Data!Q81),Data!AF81) -> 282.265 | R7: =IF(Data!$A$1=TRUE,IF(Data!R81="","",Data!R81),Data!AG81) -> 581.757 | S7: =IF(Data!$A$1=TRUE,IF(Data!S81="","",Data!S81),Data!AH81) -> 817.7 | T7: =IF(Data!$A$1=TRUE,IF(Data!T81="","",Data!T81),Data!AI81) ->  | V7: =IF(ISERROR(Q7/L7-1),"",Q7/L7-1) -> 0.237494191 | W7: =IF(ISERROR(R7/M7-1),"",R7/M7-1) -> 0.2529090615 | X7: =IF(ISERROR(S7/N7-1),"",S7/N7-1) -> 0.1339934543 | Y7: =IF(ISERROR(T7/O7-1),"",T7/O7-1) -> 
B8: Flexible Generation3 | D8: =Data!D82 -> 298.928 | E8: =Data!E82 -> 245.713 | L8: =IF(Data!$A$1=TRUE,Data!L82,Data!AA82) -> 53.643 | M8: =IF(Data!$A$1=TRUE,Data!M82,Data!AB82) -> 66.072 | N8: =IF(Data!$A$1=TRUE,Data!N82,Data!AC82) -> 182.234 | O8: =IF(Data!$A$1=TRUE,Data!O82,Data!AD82) -> 245.713 | Q8: =IF(Data!$A$1=TRUE,IF(Data!Q82="","",Data!Q82),Data!AF82) -> 35.394 | R8: =IF(Data!$A$1=TRUE,IF(Data!R82="","",Data!R82),Data!AG82) -> 146.256 | S8: =IF(Data!$A$1=TRUE,IF(Data!S82="","",Data!S82),Data!AH82) -> 209.7 | T8: =IF(Data!$A$1=TRUE,IF(Data!T82="","",Data!T82),Data!AI82) ->  | V8: -0.3401935015 | W8: 1.21358518 | X8: 0.1507183072
B9: Telecom | D9: =Data!D83 -> 25.803 | E9: =Data!E83 -> 92.822 | L9: =IF(Data!$A$1=TRUE,Data!L83,Data!AA83) -> 10.807 | M9: =IF(Data!$A$1=TRUE,Data!M83,Data!AB83) -> 31.432 | N9: =IF(Data!$A$1=TRUE,Data!N83,Data!AC83) -> 46.337 | O9: =IF(Data!$A$1=TRUE,Data!O83,Data!AD83) -> 92.822 | Q9: =IF(Data!$A$1=TRUE,IF(Data!Q83="","",Data!Q83),Data!AF83) -> 18.441 | R9: =IF(Data!$A$1=TRUE,IF(Data!R83="","",Data!R83),Data!AG83) -> 46.075 | S9: =IF(Data!$A$1=TRUE,IF(Data!S83="","",Data!S83),Data!AH83) -> 80.7 | T9: =IF(Data!$A$1=TRUE,IF(Data!T83="","",Data!T83),Data!AI83) ->  | V9: 0.7063940039 | W9: 0.465862815 | X9: 0.7415887951
B10: Digitalization/Efficiency | D10: =Data!D84 -> 32.216 | E10: =Data!E84 -> 66.721 | L10: =IF(Data!$A$1=TRUE,Data!L84,Data!AA84) -> 6.129 | M10: =IF(Data!$A$1=TRUE,Data!M84,Data!AB84) -> 18.871 | N10: =IF(Data!$A$1=TRUE,Data!N84,Data!AC84) -> 32.964 | O10: =IF(Data!$A$1=TRUE,Data!O84,Data!AD84) -> 66.721 | Q10: =IF(Data!$A$1=TRUE,IF(Data!Q84="","",Data!Q84),Data!AF84) -> 18.084 | R10: =IF(Data!$A$1=TRUE,IF(Data!R84="","",Data!R84),Data!AG84) -> 47.374 | S10: =IF(Data!$A$1=TRUE,IF(Data!S84="","",Data!S84),Data!AH84) -> 87.9 | T10: =IF(Data!$A$1=TRUE,IF(Data!T84="","",Data!T84),Data!AI84) ->  | V10: 1.950562898 | W10: 1.510412803 | X10: 1.666545322
B11: Retail/E-mobility/Other | D11: =Data!D85 -> 48 | E11: =Data!E85 -> 311 | L11: =IF(Data!$A$1=TRUE,Data!L85,Data!AA85) -> 10.425 | M11: =IF(Data!$A$1=TRUE,Data!M85,Data!AB85) -> 260.575 | N11: =IF(Data!$A$1=TRUE,Data!N85,Data!AC85) -> 279.996 | O11: =IF(Data!$A$1=TRUE,Data!O85,Data!AD85) -> 311 | Q11: =IF(Data!$A$1=TRUE,IF(Data!Q85="","",Data!Q85),Data!AF85) -> 18.155 | R11: =IF(Data!$A$1=TRUE,IF(Data!R85="","",Data!R85),Data!AG85) -> 43.066 | S11: =IF(Data!$A$1=TRUE,IF(Data!S85="","",Data!S85),Data!AH85) -> 63.6 | T11: =IF(Data!$A$1=TRUE,IF(Data!T85="","",Data!T85),Data!AI85) ->  | V11: 0.7414868106 | W11: -0.834727046 | X11: -0.7728538979
B13: 1. Including acquisitions on a debt free, cash free basis. 2023 figures adjusted for State receivables from the Romanian State. 2. Renewables includes solar, wind, hydro. 3. Flexible generation includes, CCGT and conventional

Sheet Other Financial KPIs
B2: (in €m) | H2: =Data!$G$1 -> 2023 | M2: =Data!$L$1 -> 2024 | R2: =Data!$Q$1 -> 2025 | S2: =Data!$Q$1 -> 2025
B3: Adjusted EBITDA (per activity) | D3: 2022 | E3: 2023 | F3: 2024 | H3: =IF(Data!$A$1=TRUE,Data!G2,Data!V2) -> Q1 | I3: =IF(Data!$A$1=TRUE,Data!H2,Data!W2) -> H1 | J3: =IF(Data!$A$1=TRUE,Data!I2,Data!X2) -> 9M | K3: =IF(Data!$A$1=TRUE,Data!J2,Data!Y2) -> FY | M3: Q1 | N3: H1 | O3: 9M | P3: FY | R3: Q1 | S3: H1 | T3: 9M | U3: =IF(Data!$A$1=TRUE,Data!O2,Data!AD2) -> FY
B5: Integrated | D5: =578 -> 578 | E5: 710 | F5: 1025.1 | J5: 529.9 | K5: 710 | M5: 252.365 | N5: 517.497 | O5: 727.3 | P5: 1025.1 | R5: 306.396 | S5: 659.221 | T5: 1083.574
B6: Distribution | D6: 376 | E6: 577.4 | F6: 787.6 | J6: 406.9 | K6: 577.4 | M6: 206.924 | N6: 409.204 | O6: 620.7 | P6: 787.6 | R6: 147.066 | S6: 336.819 | T6: 586.102
B7: Total | D7: =SUM(D5:D6) -> 954 | E7: =SUM(E5:E6) -> 1287.4 | F7: =SUM(F5:F6) -> 1812.7 | J7: =SUM(J5:J6) -> 936.8 | K7: =SUM(K5:K6) -> 1287.4 | M7: =SUM(M5:M6) -> 459.289 | N7: 926.701 | O7: =SUM(O5:O6) -> 1348 | P7: =SUM(P5:P6) -> 1812.7 | R7: =SUM(R5:R6) -> 453.462 | S7: 996.04 | T7: =SUM(T5:T6) -> 1669.676 | U7: 0
B9: Adjusted EBITDA (per country) | D9: =D3 -> 2022 | E9: =E3 -> 2023 | F9: 2024 | H9: =IF(Data!$A$1=TRUE,Data!G2,Data!V2) -> Q1 | I9: =IF(Data!$A$1=TRUE,Data!H2,Data!W2) -> H1 | J9: =IF(Data!$A$1=TRUE,Data!I2,Data!X2) -> 9M | K9: =K3 -> FY | M9: Q1 | N9: H1 | O9: 9M | P9: FY | R9: =R3 -> Q1 | S9: =S3 -> H1 | T9: =T3 -> 9M | U9: FY
B11: Greece | D11: 954 | E11: 1213.749 | F11: 1472.258 | J11: 936.8 | K11: 1213.749 | M11: 382.338 | N11: 730.044 | O11: 1055.8 | P11: 1472.258 | R11: 391.139 | S11: 803.18 | T11: 1334.721
B12: International | E12: 73.665 | F12: 340.497 | K12: 73.665 | M12: 76.95 | N12: 196.657 | O12: 292.2 | P12: 340.497 | R12: 62.323 | S12: 192.861 | T12: 334.955
B13: Total | D13: =SUM(D11:D12) -> 954 | E13: =SUM(E11:E12) -> 1287.414 | F13: =SUM(F11:F12) -> 1812.755 | J13: =SUM(J11:J12) -> 936.8 | K13: =SUM(K11:K12) -> 1287.414 | M13: =SUM(M11:M12) -> 459.288 | N13: =SUM(N11:N12) -> 926.701 | O13: =SUM(O11:O12) -> 1348 | P13: =SUM(P11:P12) -> 1812.755 | R13: =SUM(R11:R12) -> 453.462 | S13: =SUM(S11:S12) -> 996.041 | T13: =SUM(T11:T12) -> 1669.676 | U13: 0
D15: 31.12.2022 | E15: 31.12.2023 | F15: 31.12.2024 | H15: 31.03.2023 | I15: 30.06.2023 | J15: 30.09.2023 | K15: 31.12.2023 | M15: 31.03.2024 | N15: 30.06.2024 | O15: 30.09.2024 | P15: 31.12.2024 | R15: 31.03.2025 | S15: 30.06.2025 | T15: 30.09.2025 | U15: 31.03.2027
B17: Net Debt | D17: 1388.1 | E17: 3167.8 | F17: 5090.7 | J17: 2187.7 | K17: 3167.8 | M17: 3376 | N17: 3826 | O17: 4604.4 | P17: 5090.7 | R17: 5194 | S17: 5963 | T17: 6680
D19: =D3 -> 2022 | E19: =E3 -> 2023 | F19: =F3 -> 2024 | H19: =IF(Data!$A$1=TRUE,Data!G2,Data!V2) -> Q1 | I19: =IF(Data!$A$1=TRUE,Data!H2,Data!W2) -> H1 | J19: =IF(Data!$A$1=TRUE,Data!I2,Data!X2) -> 9M | K19: =K3 -> FY | M19: Q1 | N19: H1 | O19: 9M | P19: FY | R19: =R3 -> Q1 | S19: =S3 -> H1 | T19: =T3 -> 9M | U19: FY
B21: Net Debt/EBITDA | D21: 1.5x | E21: 2 | F21: 2.8x | J21: 2.3x | K21: 2 | M21: 2 | N21: 2.3x | O21: 2.7 | P21: 2.8x | R21: 2.9x | S21: 3.2x | T21: 3.1x
B23: Notes: FY2023 figures include the impact from the operations in Romania since October 25, 2023. 1. Based on PF LTM Adj. EBITDA

Sheet APMs 9M 2024 & 9M 2025
B3: TABLE A - EBITDA (Operating income before depreciation amortization and impairment net financial expenses and taxes) | G3: EBITDA (Operating income before depreciation and impairment net financial expenses and taxes) EBITDA serves to better analyze the Group’s operating results and is calculated as follows: Total turnover minus total operating expenses before depreciation amortization and impairment. Calculation of EBITDA is presented in Table A.
C4: GROUP
B5: Amounts in € m. | C5: 01.01-30.09.2025 | D5: 01.01-30.09.2024
B7: Total Turnover (1) | C7: 7267.601 | D7: 6582
B8: Less: | C8: 0 | D8: 0
B9: Operating expenses before depreciation and impairment (2) | C9: 5568.399 | D9: 5356
B10: Payroll cost | C10: 777.589 | D10: 681
B11: Liquid fuels | C11: 575.304 | D11: 585
B12: Natural gas | C12: 620.026 | D12: 608
B13: Energy purchases | C13: 1461.905 | D13: 1255
B14: Emission allowances | C14: 504.377 | D14: 608
B15: Provisions for expected credit losses | C15: 14.66 | D15: 124
B16: Other (income)/expenses, net | C16: 1614.538 | D16: 1495
B17: EBITDA (Α) = [(1) - (2)] | C17: 1699.202 | D17: 1226
B20: TABLE B - Operating expenditure before depreciation and impairment without special items | G20: Operating expenditure before depreciation and impairment without special items This measure is calculated by subtracting the special items mentioned in the Adjusted EBITDA note below from the figure calculated for operating expenses before depreciation and impairment in the EBITDA measure. It is presented in Table B.
C21: GROUP
B22: Amounts in € m. | C22: 01.01-30.09.2025 | D22: 01.01-30.09.2024
B24: Operating expenses before depreciation and impairment (2) | C24: 5568.399 | D24: 5356
B25: less special items:
B26: Provision for employee severance incentive due to service termination | C26: 28.02362573 | D26: -
B27: (Gain)/ Loss from valuation of power purchase agreements | C27: -57.55 | D27: 122
B28: Operating expenses before depreciation and impairment without special items | C28: 5597.925374 | D28: 5234
B31: TABLE C - Adj. EBITDA (Operating income before depreciation and impairment net financial expenses and taxes) | G31: Adjusted EBITDA (Operating income before depreciation and impairment net financial expenses and taxes) Adjusted EBITDA serves to better analyze the Group's operating results excluding the impact of special items. For the nine-month period ended 30.09.2024 the special item that affected Adjusted EBITDA was loss from valuation of power purchase agreements of €122 million (negative impact) for the Group. For the nine-month period ended 30.09.2025, the special items that affected the Adjusted EBITDA are the following: a) a provision for employee severance incentive due to service termination amounting to € 28 million for the Group (negative impact) and b) the valuation of power purchase agreements amounting to € 58 million for the Group (positive impact). Adjusted EBITDA is presented in Table C.
C32: GROUP
B33: Amounts in € m. | C33: 01.01-30.09.2025 | D33: 01.01-30.09.2024
B35: EBITDA (1) | C35: 1699.202 | D35: 1226
B36: Plus Special items (2): | C36: -29.52637427 | D36: 122
B37: Provision for employee severance incentive due to service termination | C37: 28.02362573 | D37: -
B38: (Gain)/ Loss from valuation of power purchase agreements | C38: -57.55 | D38: 122
B39: Adjusted EBITDA (3) = [(1)+(2)] | C39: 1669.675626 | D39: 1348
B42: TABLE D - Adj. Net Income/(Loss) | G42: Adjusted net income/(loss) This Index serves to better analyze the results of the Group, excluding the effect of special items and the calculated tax on them. Furthermore, the Impairment loss on assets and the calculated tax on them have been excluded for the nine-month period ended 30.09.2024 and 30.09.2025. In addition, for the nine-month period ended 30.09.2025, the Depreciation from revaluation of fixed assets, Foreign exchange (gains)/ losses on loans and borrowings, Gain from remeasurement of investment in associates, Bargain gain from subsidiaries acquisition and the tax on all of them have been excluded. The calculations are presented in Table D.
C43: GROUP
B44: Amounts in € m. | C44: 01.01-30.09.2025 | D44: 01.01-30.09.2024
B46: NET INCOME AFTER TAX (A) | C46: 380 | D46: 199
B47: plus special items (1):
B48: (Gain)/ Loss from valuation of power purchase agreements | C48: -57.55 | D48: 122
B49: Provision for employee severance incentive due to service termination | C49: 28.02362573 | D49: -
B50: plus other figures (2): | C50: 0 | D50: 0
B51: Impairment loss on assets | C51: 1 | D51: 14
B52: Depreciation from revaluation of fixed assets | C52: 88 | D52: -
B53: Foreign exchange losses on loans and borrowings | C53: 11 | D53: -
B54: Bargain gain from subsidiaries acquisition | C54: -4 | D54: -
B55: Gain from remeasurement of investment in associates | C55: -7.360816 | D55: -
B56: minus: | C56: 0 | D56: 0
B57: Adjustments to tax for special items/Impairment loss on assets/ Depreciation from revaluation of fixed assets/Foreign exchange (gains)/ losses on loans and borrowings/Gain from remeasurement of investment in associates/Bargain gain from subsidiaries acquisition (3) | C57: -5.807069841 | D57: 30
B58: Adjusted Net Income [(Α)+(1)+(2)-(3)] | C58: 444.9198796 | D58: 305
B61: Table E - Adj. net income/(loss) after minorities | G61: Adjusted net income/(loss) after minorities Adjusted net income/(loss) after minorities serves to better analyze the results of the Group, excluding the effect of minorities, and minorities on special items. The special items that affected Adjusted net income/(loss) after minorities for the Group for the nine-month period ended 30.09.2025 were a) gain from valuation of power purchase agreements and b) provision for employee severance incentive due to service termination, while for the nine-month period ended 30.09.2024 this index was affected only by loss from valuation of power purchase agreements. The calculations are presented in Table E.
C62: GROUP
B63: Amounts in € m. | C63: 01.01-30.09.2025 | D63: 01.01-30.09.2024
B65: Adjusted net income (Β) | C65: 444.9198796 | D65: 305
B66: minus:
B67: Minorities (1) | C67: 42.80045759 | D67: 77
B68: plus Adjustments to minorities for special items (2):
B69: Gain from valuation of power purchase agreements | C69: 8.777174846 | D69: 13
B70: Provision for employee severance incentive due to service termination | C70: -5.060567154 | D70: -
B71: Adjusted net income after minorities [(Β)-(1)+(2)] | C71: 405.8360297 | D71: 241
B74: Table F - Adj. Earnings per share | G74: Adjusted earnings per share The adjusted earnings per share (Adjusted EPS) ratio reflects the Group's actual operating profitability per share, excluding extraordinary or non-recurring events, and is calculated as the quotient of adjusted net income divided by the weighted average number of shares. The calculation is presented in Table F.
C75: GROUP
B76: Amounts in € m. | C76: 01.01-30.09.2025 | D76: 01.01-30.09.2024
B78: Adjusted Net Income after Minorities (1) (Amounts in € m.) | C78: 405.8360297 | D78: 241
B79: Over: | C79: 0 | D79: 0
B80: Weighted average number of shares (2) (Amounts in m.) | C80: 348.56065 | D80: 360.2107999
B81: Adjusted Earnings per share [(3)=(1)/(2)] (Amounts in €) | C81: 1.164319695 | D81: 0.6690526771
B84: TABLE G – NET DEBT | G84: Net debt Net debt is an APM that Management uses to evaluate the Group’s capital structure as well as leverage. Net debt is calculated by adding long-term loans the current portion of long-term loans and short-term loans and subtracting the total cash and cash equivalents restricted cash related to loan agreements and financial assets measured at fair value through other comprehensive income and adding the unamortized portion of loans issuance fees and loan amendments IFRS 9. Calculation of Net debt is presented in Table G.
D85: GROUP
B86: Amounts in € m. | C86: 30.09.2025 | D86: 30.09.2024 | E86: 31.12.2024
B87: Long-term borrowing | C87: 6258 | D87: 4813 | E87: 6233
B88: Short-term borrowing and Current portion of long-term borrowing | C88: 1871 | D88: 1343 | E88: 923
B89: Restricted cash and Cash and cash equivalents | C89: -1585.323 | D89: -1627 | E89: -2161.233
B90: Financial assets measured at fair value through other comprehensive income | C90: -0.347 | D90: -0.3 | E90: -0.3
B91: Unamortized portion of loans issuance fees and loan amendments IFRS 9 | C91: 137 | D91: 75 | E91: 97
B92: TOTAL | C92: 6680.33 | D92: 4603.7 | E92: 5091.467

Sheet Disclaimer

Sheet IR Contact
